Workbook

Sheet journal
A3: مسلسل | B3: التاريخ | C3: اسم المقاول | D3: الحركة /رقم القيد | E3: العملية | F3: البيــان | G3: اسم المشروع | H3: رقم العقد | I3: تاريخ العقد | J3: بداية الاعمال | K3: نهاية الاعمال | L3: قيمة العقد | M3: رقم المستخلص | N3: ينود الاعمال | O3: الكمية | P3: الوحدة | Q3: السعر | R3: نسبة القيمة من العقد | S3: الدفعات / الخصم | T3: قيمة المستخلص
A4: =IF(M4<>"",1,"") -> 1 | B4: 2025-01-05 | C4: محمد.سميرابراهيم | D4: جارى 1 | E4: مستخص | F4: مستخلص | G4: مشروع اعمال مجمع الثلاجات البطاطس محطة الفرز و التعبئة /2023 | L4: 50000 | M4: ج1 | O4: 50 | P4: عدد | Q4: 1145 | S4: ='[1]ارصده المقاولين'!K159 -> 0 | T4: =+O4*Q4 -> 57250
A5: =IF(M5<>"",1,"") ->  | B5: 2025-01-07 | C5: محمد.سميرابراهيم | D5: 105550 | E5: دفعات | F5: ينك مصر | G5: مشروع اعمال مجمع الثلاجات البطاطس محطة الفرز و التعبئة /2023 | S5: 50000
A6: =IF(M6<>"",1,"") -> 1 | B6: 2025-01-05 | C6: احمدثابت | D6: جارى 1 | E6: مستخص | F6: مستخلص | G6: مشروع اعمال مجمع الثلاجات البطاطس محطة الفرز و التعبئة /2023 | L6: 50000 | M6: ج1 | O6: 50 | P6: عدد | Q6: 1145 | T6: =+O6*Q6 -> 57250
B7: 2025-01-07 | C7: احمدثابت | D7: 105550 | E7: دفعات | F7: ينك مصر | G7: مشروع اعمال مجمع الثلاجات البطاطس محطة الفرز و التعبئة /2023 | S7: 50000
A8: 1 | B8: 2025-01-05 | C8: يثرب | D8: جارى 1 | E8: مستخص | F8: مستخلص | G8: مشروع اعمال مجمع الثلاجات البطاطس محطة الفرز و التعبئة /2023 | L8: 50000 | M8: ج1 | O8: 50 | P8: عدد | Q8: 1145 | T8: =+O8*Q8 -> 57250
B9: 2025-01-07 | C9: يثرب | D9: 105550 | E9: دفعات | F9: ينك مصر | G9: مشروع اعمال مجمع الثلاجات البطاطس محطة الفرز و التعبئة /2023 | S9: 50000
A10: 1 | B10: 2025-01-05 | C10: الصرح | D10: جارى 1 | E10: مستخص | F10: مستخلص | G10: مشروع اعمال مجمع الثلاجات البطاطس محطة الفرز و التعبئة /2023 | L10: 50000 | M10: ج1 | O10: 50 | P10: عدد | Q10: 1145 | T10: =+O10*Q10 -> 57250
B11: 2025-01-07 | C11: الصرح | D11: 105550 | E11: دفعات | F11: ينك مصر | G11: مشروع اعمال مجمع الثلاجات البطاطس محطة الفرز و التعبئة /2023 | S11: 50000
A12: 1 | B12: 2025-01-05 | C12: فرج.كمال.محمود.فرج.هلال | D12: جارى 1 | E12: مستخص | F12: مستخلص | G12: مشروع اعمال مجمع الثلاجات البطاطس محطة الفرز و التعبئة /2023 | L12: 50000 | M12: ج1 | O12: 50 | P12: عدد | Q12: 1145 | T12: =+O12*Q12 -> 57250
B13: 2025-01-07 | C13: فرج.كمال.محمود.فرج.هلال | D13: 105550 | E13: دفعات | F13: ينك مصر | G13: مشروع اعمال مجمع الثلاجات البطاطس محطة الفرز و التعبئة /2023 | S13: 50000
A14: 1 | B14: 2025-01-05 | C14: محمد.احمد.فاروق | D14: جارى 1 | E14: مستخص | F14: مستخلص | G14: مشروع اعمال مجمع الثلاجات البطاطس محطة الفرز و التعبئة /2023 | L14: 50000 | M14: ج1 | O14: 50 | P14: عدد | Q14: 1145 | T14: =+O14*Q14 -> 57250
B15: 2025-01-07 | C15: محمد.احمد.فاروق | D15: 105550 | E15: دفعات | F15: ينك مصر | G15: مشروع اعمال مجمع الثلاجات البطاطس محطة الفرز و التعبئة /2023 | S15: 50000
A16: 1 | B16: 2025-01-05 | C16: محمد.سامى.المشد.فيوتشر | D16: جارى 1 | E16: مستخص | F16: مستخلص | G16: مشروع اعمال مجمع الثلاجات البطاطس محطة الفرز و التعبئة /2023 | L16: 50000 | M16: ج1 | O16: 50 | P16: عدد | Q16: 1145 | T16: =+O16*Q16 -> 57250
B17: 2025-01-07 | C17: محمد.سامى.المشد.فيوتشر | D17: 105550 | E17: دفعات | F17: ينك مصر | G17: مشروع اعمال مجمع الثلاجات البطاطس محطة الفرز و التعبئة /2023 | S17: 50000
A18: 1 | B18: 2025-01-05 | C18: محمد.سميرابراهيم | D18: جارى 1 | E18: مستخص | F18: مستخلص | G18: مشروع اعمال مجمع الثلاجات البطاطس محطة الفرز و التعبئة /2023 | L18: 50000 | M18: ج1 | O18: 50 | P18: عدد | Q18: 1145 | T18: =+O18*Q18 -> 57250
B19: 2025-01-07 | C19: محمد.سميرابراهيم | D19: 105550 | E19: دفعات | F19: ينك مصر | G19: مشروع اعمال مجمع الثلاجات البطاطس محطة الفرز و التعبئة /2023 | S19: 50000
A20: 1 | B20: 2025-01-05 | C20: احمدثابت | D20: جارى 1 | E20: مستخص | F20: مستخلص | G20: مشروع اعمال مجمع الثلاجات البطاطس محطة الفرز و التعبئة /2023 | L20: 50000 | M20: ج1 | O20: 50 | P20: عدد | Q20: 1145 | T20: =+O20*Q20 -> 57250
B21: 2025-01-07 | C21: احمدثابت | D21: 105550 | E21: دفعات | F21: ينك مصر | G21: مشروع اعمال مجمع الثلاجات البطاطس محطة الفرز و التعبئة /2023 | S21: 50000
A22: 1 | B22: 2025-01-05 | C22: يثرب | D22: جارى 1 | E22: مستخص | F22: مستخلص | G22: مشروع اعمال مجمع الثلاجات البطاطس محطة الفرز و التعبئة /2023 | L22: 50000 | M22: ج1 | O22: 50 | P22: عدد | Q22: 1145 | T22: =+O22*Q22 -> 57250
B23: 2025-01-07 | C23: يثرب | D23: 105550 | E23: دفعات | F23: ينك مصر | G23: مشروع اعمال مجمع الثلاجات البطاطس محطة الفرز و التعبئة /2023 | S23: 50000
A24: 1 | B24: 2025-01-05 | C24: الصرح | D24: جارى 1 | E24: مستخص | F24: مستخلص | G24: مشروع اعمال مجمع الثلاجات البطاطس محطة الفرز و التعبئة /2023 | L24: 50000 | M24: ج1 | O24: 50 | P24: عدد | Q24: 1145 | T24: =+O24*Q24 -> 57250
B25: 2025-01-07 | C25: الصرح | D25: 105550 | E25: دفعات | F25: ينك مصر | G25: مشروع اعمال مجمع الثلاجات البطاطس محطة الفرز و التعبئة /2023 | S25: 50000
A26: 1 | B26: 2025-01-05 | C26: فرج.كمال.محمود.فرج.هلال | D26: جارى 1 | E26: مستخص | F26: مستخلص | G26: مشروع اعمال مجمع الثلاجات البطاطس محطة الفرز و التعبئة /2023 | L26: 50000 | M26: ج1 | O26: 50 | P26: عدد | Q26: 1145 | T26: =+O26*Q26 -> 57250
B27: 2025-01-07 | C27: فرج.كمال.محمود.فرج.هلال | D27: 105550 | E27: دفعات | F27: ينك مصر | G27: مشروع اعمال مجمع الثلاجات البطاطس محطة الفرز و التعبئة /2023 | S27: 50000
A28: 1 | B28: 2025-01-05 | C28: محمد.احمد.فاروق | D28: جارى 1 | E28: مستخص | F28: مستخلص | G28: مشروع اعمال مجمع الثلاجات البطاطس محطة الفرز و التعبئة /2023 | L28: 50000 | M28: ج1 | O28: 50 | P28: عدد | Q28: 1145 | T28: =+O28*Q28 -> 57250
B29: 2025-01-07 | C29: محمد.احمد.فاروق | D29: 105550 | E29: دفعات | F29: ينك مصر | G29: مشروع اعمال مجمع الثلاجات البطاطس محطة الفرز و التعبئة /2023 | S29: 50000
A30: 1 | B30: 2025-01-05 | C30: محمد.سامى.المشد.فيوتشر | D30: جارى 1 | E30: مستخص | F30: مستخلص | G30: مشروع اعمال مجمع الثلاجات البطاطس محطة الفرز و التعبئة /2023 | L30: 50000 | M30: ج1 | O30: 50 | P30: عدد | Q30: 1145 | T30: =+O30*Q30 -> 57250
B31: 2025-01-07 | C31: محمد.سامى.المشد.فيوتشر | D31: 105550 | E31: دفعات | F31: ينك مصر | G31: مشروع اعمال مجمع الثلاجات البطاطس محطة الفرز و التعبئة /2023 | S31: 50000
A32: 1 | B32: 2025-01-05 | C32: محمد.سميرابراهيم | D32: جارى 1 | E32: مستخص | F32: مستخلص | G32: مشروع اعمال مجمع الثلاجات البطاطس محطة الفرز و التعبئة /2023 | L32: 50000 | M32: ج1 | O32: 50 | P32: عدد | Q32: 1145 | T32: =+O32*Q32 -> 57250
B33: 2025-01-07 | C33: محمد.سميرابراهيم | D33: 105550 | E33: دفعات | F33: ينك مصر | G33: مشروع اعمال مجمع الثلاجات البطاطس محطة الفرز و التعبئة /2023 | S33: 50000
A34: 1 | B34: 2025-01-05 | C34: احمدثابت | D34: جارى 1 | E34: مستخص | F34: مستخلص | G34: مشروع اعمال مجمع الثلاجات البطاطس محطة الفرز و التعبئة /2023 | L34: 50000 | M34: ج1 | O34: 50 | P34: عدد | Q34: 1145 | T34: =+O34*Q34 -> 57250
B35: 2025-01-07 | C35: احمدثابت | D35: 105550 | E35: دفعات | F35: ينك مصر | G35: مشروع اعمال مجمع الثلاجات البطاطس محطة الفرز و التعبئة /2023 | S35: 50000
A36: 1 | B36: 2025-01-05 | C36: يثرب | D36: جارى 1 | E36: مستخص | F36: مستخلص | G36: مشروع اعمال مجمع الثلاجات البطاطس محطة الفرز و التعبئة /2023 | L36: 50000 | M36: ج1 | O36: 50 | P36: عدد | Q36: 1145 | T36: =+O36*Q36 -> 57250
B37: 2025-01-07 | C37: يثرب | D37: 105550 | E37: دفعات | F37: ينك مصر | G37: مشروع اعمال مجمع الثلاجات البطاطس محطة الفرز و التعبئة /2023 | S37: 50000
A38: 1 | B38: 2025-01-05 | C38: الصرح | D38: جارى 1 | E38: مستخص | F38: مستخلص | G38: مشروع اعمال مجمع الثلاجات البطاطس محطة الفرز و التعبئة /2023 | L38: 50000 | M38: ج1 | O38: 50 | P38: عدد | Q38: 1145 | T38: =+O38*Q38 -> 57250
B39: 2025-01-07 | C39: الصرح | D39: 105550 | E39: دفعات | F39: ينك مصر | G39: مشروع اعمال مجمع الثلاجات البطاطس محطة الفرز و التعبئة /2023 | S39: 50000 | T39: 0
A40: 1 | B40: 2025-01-05 | C40: فرج.كمال.محمود.فرج.هلال | D40: جارى 1 | E40: مستخص | F40: مستخلص | G40: مشروع اعمال مجمع الثلاجات البطاطس محطة الفرز و التعبئة /2023 | L40: 50000 | M40: ج1 | O40: 50 | P40: عدد | Q40: 1145 | T40: =+O40*Q40 -> 57250
B41: 2025-01-07 | C41: فرج.كمال.محمود.فرج.هلال | D41: 105550 | E41: دفعات | F41: ينك مصر | G41: مشروع اعمال مجمع الثلاجات البطاطس محطة الفرز و التعبئة /2023 | S41: 50000
A42: 1 | B42: 2025-01-05 | C42: محمد.احمد.فاروق | D42: جارى 1 | E42: مستخص | F42: مستخلص | G42: مشروع اعمال مجمع الثلاجات البطاطس محطة الفرز و التعبئة /2023 | L42: 50000 | M42: ج1 | O42: 50 | P42: عدد | Q42: 1145 | T42: =+O42*Q42 -> 57250
B43: 2025-01-07 | C43: محمد.احمد.فاروق | D43: 105550 | E43: دفعات | F43: ينك مصر | G43: مشروع اعمال مجمع الثلاجات البطاطس محطة الفرز و التعبئة /2023 | S43: 50000
A44: 1 | B44: 2025-01-05 | C44: محمد.سامى.المشد.فيوتشر | D44: جارى 1 | E44: مستخص | F44: مستخلص | G44: مشروع اعمال مجمع الثلاجات البطاطس محطة الفرز و التعبئة /2023 | L44: 50000 | M44: ج1 | O44: 50 | P44: عدد | Q44: 1145 | T44: =+O44*Q44 -> 57250
B45: 2025-01-07 | C45: محمد.سامى.المشد.فيوتشر | D45: 105550 | E45: دفعات | F45: ينك مصر | G45: مشروع اعمال مجمع الثلاجات البطاطس محطة الفرز و التعبئة /2023 | S45: 50000
A46: 1 | B46: 2025-01-05 | C46: محمد.سميرابراهيم | D46: جارى 1 | E46: مستخص | F46: مستخلص | G46: مشروع اعمال مجمع الثلاجات البطاطس محطة الفرز و التعبئة /2023 | L46: 50000 | M46: ج1 | O46: 50 | P46: عدد | Q46: 1145 | T46: =+O46*Q46 -> 57250
B47: 2025-01-07 | C47: محمد.سميرابراهيم | D47: 105550 | E47: دفعات | F47: ينك مصر | G47: مشروع اعمال مجمع الثلاجات البطاطس محطة الفرز و التعبئة /2023 | S47: 50000
A48: 1 | B48: 2025-01-05 | C48: احمدثابت | D48: جارى 1 | E48: مستخص | F48: مستخلص | G48: مشروع اعمال مجمع الثلاجات البطاطس محطة الفرز و التعبئة /2023 | L48: 50000 | M48: ج1 | O48: 50 | P48: عدد | Q48: 1145 | T48: =+O48*Q48 -> 57250
B49: 2025-01-07 | C49: احمدثابت | D49: 105550 | E49: دفعات | F49: ينك مصر | G49: مشروع اعمال مجمع الثلاجات البطاطس محطة الفرز و التعبئة /2023 | S49: 50000
A50: 1 | B50: 2025-01-05 | C50: يثرب | D50: جارى 1 | E50: مستخص | F50: مستخلص | G50: مشروع اعمال مجمع الثلاجات البطاطس محطة الفرز و التعبئة /2023 | L50: 50000 | M50: ج1 | O50: 50 | P50: عدد | Q50: 1145 | T50: =+O50*Q50 -> 57250
B51: 2025-01-07 | C51: يثرب | D51: 105550 | E51: دفعات | F51: ينك مصر | G51: مشروع اعمال مجمع الثلاجات البطاطس محطة الفرز و التعبئة /2023 | S51: 50000
A52: 1 | B52: 2025-01-05 | C52: الصرح | D52: جارى 1 | E52: مستخص | F52: مستخلص | G52: مشروع اعمال مجمع الثلاجات البطاطس محطة الفرز و التعبئة /2023 | L52: 50000 | M52: ج1 | O52: 50 | P52: عدد | Q52: 1145 | T52: =+O52*Q52 -> 57250
B53: 2025-01-07 | C53: الصرح | D53: 105550 | E53: دفعات | F53: ينك مصر | G53: مشروع اعمال مجمع الثلاجات البطاطس محطة الفرز و التعبئة /2023 | S53: 50000
A54: 1 | B54: 2025-01-05 | C54: فرج.كمال.محمود.فرج.هلال | D54: جارى 1 | E54: مستخص | F54: مستخلص | G54: مشروع اعمال مجمع الثلاجات البطاطس محطة الفرز و التعبئة /2023 | L54: 50000 | M54: ج1 | O54: 50 | P54: عدد | Q54: 1145 | T54: =+O54*Q54 -> 57250
B55: 2025-01-07 | C55: فرج.كمال.محمود.فرج.هلال | D55: 105550 | E55: دفعات | F55: ينك مصر | G55: مشروع اعمال مجمع الثلاجات البطاطس محطة الفرز و التعبئة /2023 | S55: 50000
A56: 1 | B56: 2025-01-05 | C56: محمد.احمد.فاروق | D56: جارى 1 | E56: مستخص | F56: مستخلص | G56: مشروع اعمال مجمع الثلاجات البطاطس محطة الفرز و التعبئة /2023 | L56: 50000 | M56: ج1 | O56: 50 | P56: عدد | Q56: 1145 | T56: =+O56*Q56 -> 57250
B57: 2025-01-07 | C57: محمد.احمد.فاروق | D57: 105550 | E57: دفعات | F57: ينك مصر | G57: مشروع اعمال مجمع الثلاجات البطاطس محطة الفرز و التعبئة /2023 | S57: 50000
A58: 1 | B58: 2025-01-05 | C58: محمد.سامى.المشد.فيوتشر | D58: جارى 1 | E58: مستخص | F58: مستخلص | G58: مشروع اعمال مجمع الثلاجات البطاطس محطة الفرز و التعبئة /2023 | L58: 50000 | M58: ج1 | O58: 50 | P58: عدد | Q58: 1145 | T58: =+O58*Q58 -> 57250
B59: 2025-01-07 | C59: محمد.سامى.المشد.فيوتشر | D59: 105550 | E59: دفعات | F59: ينك مصر | G59: مشروع اعمال مجمع الثلاجات البطاطس محطة الفرز و التعبئة /2023 | S59: 50000 | T59: =+O59*Q59 -> 0
A60: 1 | B60: 2025-01-05 | C60: محمد.سميرابراهيم | D60: جارى 1 | E60: مستخص | F60: مستخلص | G60: مشروع اعمال مجمع الثلاجات البطاطس محطة الفرز و التعبئة /2023 | L60: 50000 | M60: ج1 | O60: 50 | P60: عدد | Q60: 1145 | T60: =+O60*Q60 -> 57250
B61: 2025-01-07 | C61: محمد.سميرابراهيم | D61: 105550 | E61: دفعات | F61: ينك مصر | G61: مشروع اعمال مجمع الثلاجات البطاطس محطة الفرز و التعبئة /2023 | S61: 50000 | T61: 0
T62: 0
T63: 0
T64: 0
T65: 0
T66: 0
T67: 0
T68: 0
T69: 0
T70: 0
T71: 0
T72: 0
T73: 0
T74: 0
T75: 0
T76: 0
T77: 0
T78: 0
T79: 0
T80: 0
T81: 0
T82: 0
T83: 0
T84: 0
T85: 0
T86: 0
T87: 0
T88: 0
T89: 0
T90: 0
T91: 0
T92: 0
T93: 0
T94: 0
T95: 0
T96: 0
T97: 0
T98: 0
T99: 0
T100: 0
T101: 0
T102: 0
T103: 0
T104: 0
T105: 0
T106: 0
T107: 0
T108: 0
T109: 0
T110: 0
T111: 0
T112: 0
T113: 0
T114: 0
T115: 0
T116: 0
T117: 0
T118: 0
T119: 0
T120: 0
T121: 0
T122: 0
T123: 0
T124: =+O124*Q124 -> 0
T125: 0
T126: 0
T127: 0
T128: 0
T129: 0
T130: 0
T131: 0
T132: 0
T133: 0
T134: 0
T135: 0
T136: 0
T137: 0
T138: 0
T139: 0
T140: 0
T141: 0
T142: 0
T143: 0
T144: 0
T145: 0
T146: 0
T147: 0
T148: 0
A149: =IF(M149<>"",A148+1,"") ->  | T149: 0
T150: 0
T151: 0
T152: 0
T153: 0
T154: 0
T155: 0
T156: 0
T157: 0
T158: 0
T159: 0
T160: 0
T161: 0
T162: 0
T163: 0
T164: 0
T165: 0
T166: 0
T167: 0
T168: 0
T169: 0
T170: 0
T171: 0
T172: 0
T173: 0
T174: 0
T175: 0
T176: 0
T177: 0
T178: 0
T179: 0
T180: 0
T181: 0
T182: 0
T183: 0
T184: 0
T185: 0
T186: 0
T187: 0
T188: =+O188*Q188 -> 0
T189: 0
T190: 0
T191: 0
T192: 0
T193: 0
T194: 0
T195: 0
T196: 0
T197: 0
A198: =IF(M198<>"",A197+1,"") ->  | T198: 0
T199: 0
T200: 0
T201: 0
T202: 0
... 34 more rows

Sheet embt1
A1: 377 | B1: embt1 | D1: 2023 | K1: عدد اليوميات | L1: =SUBTOTAL(9,L5:L144) -> 0 | M1: قيمة الاعمال | N1: =SUBTOTAL(9,N5:N144) -> 0 | P1: =SUBTOTAL(9,P5:P56) -> 0 | Q1: =SUBTOTAL(9,Q5:Q56) -> 0 | R1: =P1+P4-Q1-Q4 -> 0
A3: التاريخ | B3: الحركة /رقم القيد | C3: رقم الشيك | D3: البيــان | E3: اسم المشروع | F3: رقم العقد | G3: بند الاعمال | H3: بداية الاعمال | I3: نهاية الاعمال | J3: سعر البند بالعقد | K3: الوحدة | L3: الكمية | M3: السعر | N3: قيمة المستخلص | O3: رقم المستخلص | P3: مدين | Q3: دائن | R3: رصيـد
D4: 2023-01-01 | P4: ='[1]ارصده المقاولين'!K159 -> 0 | Q4: ='[1]ارصده المقاولين'!L159 -> 0
E5: مشروع اعمال مجمع الثلاجات البطاطس محطة الفرز و التعبئة /2023 | J5: - | R5: =R4+P5-Q5 -> 0
E6: مشروع اعمال مجمع الثلاجات البطاطس محطة الفرز و التعبئة /2023 | J6: - | R6: =R5+P6-Q6 -> 0
E7: مشروع اعمال مجمع الثلاجات البطاطس محطة الفرز و التعبئة /2023 | J7: - | R7: =R6+P7-Q7 -> 0
E8: مشروع اعمال مجمع الثلاجات البطاطس محطة الفرز و التعبئة /2023 | J8: - | R8: =R7+P8-Q8 -> 0
J9: - | R9: =R8+P9-Q9 -> 0
R10: 0
J11: - | R11: 0
R12: 0
J13: - | R13: 0
R14: 0
J15: - | R15: 0
R16: 0
J17: - | R17: 0

Sheet toutal
B1: اسم المقاول | C1: =+محمد.سميرابراهيم!M3 -> مدين | D1: =+محمد.سميرابراهيم!N3 -> دائن | E1: =+محمد.سميرابراهيم!O3 -> رصيـد
T2: hakan
A3: journal | B3: =IFERROR(INDIRECT(A3&"!b1"),"") -> 0 | C3: 0 | D3: =IFERROR(INDIRECT(A3&"!n1"),"") -> 0 | E3: =+D3-C3 -> 0 | T3: hakan1
A4: embt1 | B4: =IFERROR(INDIRECT(A4&"!b1"),"") -> embt1 | C4: =IFERROR(INDIRECT(A4&"!p1"),"") -> 0 | D4: =IFERROR(INDIRECT(A4&"!q1"),"") -> 0 | E4: =IF(B4<>"",D4-C4,"") -> 0 | T4: hakan5
A5: محمد.سميرابراهيم | B5: محمد سمير ابراهيم أحمد | C5: =IFERROR(INDIRECT(A5&"!p1"),"") -> 0 | D5: =IFERROR(INDIRECT(A5&"!q1"),"") -> 0 | E5: =IF(B5<>"",D5-C5,"") -> 0 | T5: hakan6
A6: احمدثابت | B6: أحمد ثابت عبد العزيز تركي | C6: 36180 | D6: 36180 | E6: 0 | T6: hakan7
A7: يثرب | B7: شركة يثرب للهندسة و المقاولات | C7: 65070549.04 | D7: 5739081 | E7: -59331468.04 | T7: hakan8
A8: عمرابوسريع | B8: عمر ابو سريع موسي سرور | C8: 1179163.2 | D8: 980052 | E8: -199111.2 | T8: hakan9
A9: اجرولايف | B9: شركة أجرولايف للمقاولات و التوريدات | C9: 3782563 | D9: 0 | E9: -3782563 | T9: hakan10
A10: الصرح | B10: شركة الصرح للمقاولات و التوريدات | C10: =IFERROR(INDIRECT(A10&"!p1"),"") -> 3119728 | D10: =IFERROR(INDIRECT(A10&"!q1"),"") -> 1982654 | E10: -1137074
A11: رمضان.عبد.الحكيم_محمد | B11: رمضان عبد الحكيم محمد حسن | C11: =IFERROR(INDIRECT(A11&"!n1"),"") -> 168915 | D11: =IFERROR(INDIRECT(A11&"!n1"),"") -> 168915 | E11: 0
A12: فرج.كمال.محمود.فرج.هلال | B12: فرج كمال محمود فرج هلال | C12: 0 | D12: 0 | E12: 0
A13: محمد.سامى.المشد.فيوتشر | B13: محمد سامى المشد - فيوتشر للاستثمار | C13: 273240 | D13: 273240 | E13: 0
A14: وائل.فوزى.يونيفرسال | B14: وائل فوزي ابراهيم محمد اسماعيل- يونيفرسال | C14: 30698588 | D14: 15127110 | E14: -15571478
A15: محمد.احمد.فاروق | B15: محمد احمد فاروق السيد | C15: =IFERROR(INDIRECT(A15&"!n1"),"") -> 0 | D15: =IFERROR(INDIRECT(A15&"!o1"),"") -> 0 | E15: 0
A16: ستون.احمد.عبد.المنعم | B16: ستون - احمد عبد المنعم | C16: =IFERROR(INDIRECT(A16&"!n1"),"") -> 218550 | D16: =IFERROR(INDIRECT(A16&"!o1"),"") -> 218550 | E16: 0
A17: محمود.لطفى.محمود.عبد.البارى | B17: محمود لطفي محمود عبد الباري | C17: -22000 | D17: 0 | E17: 22000
A18: مصنع.الفنية.للخراطة.شمندى | B18: مصنع.الفنية.للخراطة.شمندى | C18: 1030000 | D18: 637200 | E18: -392800
A19: بيومى.أنور.بيومى.فرج | B19: بيومى.أنور.بيومى.فرج | C19: 778000 | D19: 749194.3 | E19: -28805.7
A20: شركة.جيسكو.للتاريض | B20: شركة.جيسكو.للتاريض | C20: 1588595 | D20: 1748850 | E20: 160255
A21: حسين.محسن.احمد | B21: حسين.محسن.احمد | C21: 989930 | D21: 990920 | E21: 990
A22: خالد.فريد.محمد | B22: خالد.فريد.محمد | C22: 180000 | D22: 0 | E22: -180000
A23: خليفه.فرغلى.عبدالحميد | B23: خليفه.فرغلى.عبدالحميد | C23: 1099200 | D23: 1114795.9 | E23: 15595.9
A24: سيد.احمد.ذكى | B24: سيد.احمد.ذكى | C24: 83700 | D24: 83742.5 | E24: 42.5
A25: شركة.الاتحاد.شريف.معوض | B25: شركة.الاتحاد.شريف.معوض | C25: 179950 | D25: 1470552.35 | E25: 1290602.35
A26: شركة.الصفا.سيزر.مان.لفت | B26: شركة.الصفا.سيزر.مان.لفت | C26: 0 | D26: 70842.99 | E26: 70842.99
A27: صبحى.السيد.عبد.العزيز.بيومى | B27: صبحى.السيد.عبد.العزيز.بيومى | C27: 23733 | D27: 23773.4 | E27: 40.4
A28: شوقى.سيد.عبده | B28: شوقى.سيد.عبده | C28: 473824 | D28: 306364 | E28: -167460
A29: شركة.ماستر.بيلدرز | B29: شركة.ماستر.بيلدرز | C29: 2303945 | D29: 2045970 | E29: -257975
B68: =IFERROR(INDIRECT(A68&"!b1"),"") -> 
C69: =IFERROR(INDIRECT(A69&"!p1"),"") ->  | D69: =IFERROR(INDIRECT(A69&"!q1"),"") ->  | E69: =IF(B69<>"",D69-C69,"") -> 
B132: =IFERROR(INDIRECT(A132&"!b1"),"") -> 
C133: =IFERROR(INDIRECT(A133&"!p1"),"") ->  | D133: =IFERROR(INDIRECT(A133&"!q1"),"") ->  | E133: =IF(B133<>"",D133-C133,"") -> 
B196: =IFERROR(INDIRECT(A196&"!b1"),"") -> 
C197: =IFERROR(INDIRECT(A197&"!p1"),"") ->  | D197: =IFERROR(INDIRECT(A197&"!q1"),"") ->  | E197: =IF(B197<>"",D197-C197,"") -> 
B260: =IFERROR(INDIRECT(A260&"!b1"),"") -> 
C261: =IFERROR(INDIRECT(A261&"!p1"),"") ->  | D261: =IFERROR(INDIRECT(A261&"!q1"),"") ->  | E261: =IF(B261<>"",D261-C261,"") -> 

Sheet محمد.سميرابراهيم
A1: 13 | B1: محمد سمير ابراهيم أحمد | D1: ='[1]1'!$D$1 -> 2023 | M1: =SUBTOTAL(9,M4:M53) -> 167312 | N1: =SUBTOTAL(9,N4:N53) -> 167312 | O1: =M1-N1 -> 0
A3: التاريخ | B3: الحركة /رقم القيد | C3: رقم الشيك | D3: البيــان | E3: اسم المشروع | F3: رقم العقد | G3: بند الاعمال | H3: الوحدة | I3: الكمية | J3: السعر | K3: القيمة | L3: رقم المستخلص | M3: مدين | N3: دائن | O3: رصيـد
D4: ='[1]1'!$D$4 -> رصيد 2023/1/1 | M4: ='[1]ارصده المقاولين'!K20 -> 0 | N4: ='[1]ارصده المقاولين'!L20 -> 0 | O4: =M4-N4 -> 0
A5: 2023-10-18 | B5: أعمال مستحقة | C5: مستخلصات | D5: مستخلص معده لودر 910 عدد 13 يومية عن الفترة من 16/09/2023 و الي 30/09/2023 | E5: مشروع اعمال مجمع الثلاجات البطاطس محطة الفرز و التعبئة /2023 | F5: - | G5: لودر 910 | H5: يوميات | I5: 13 | J5: 1154 | K5: 15000 | L5: مذكرة | N5: =K5 -> 15000 | O5: =O4+M5-N5 -> -15000
A6: 2023-09-24 | B6: دفعات نقدية | C6: 1305 | D6: دفعة نقدية من عهدة الموقع | E6: مشروع اعمال مجمع الثلاجات البطاطس محطة الفرز و التعبئة /2023 | F6: - | G6: - | H6: - | I6: - | J6: - | K6: - | L6: - | M6: 2000 | O6: -13000
A7: 2023-10-01 | B7: دفعات نقدية | C7: 1338 | D7: دفعة نقدية من عهدة الموقع | E7: مشروع اعمال مجمع الثلاجات البطاطس محطة الفرز و التعبئة /2023 | F7: - | G7: - | H7: - | I7: - | J7: - | K7: - | L7: - | M7: 1000 | O7: -12000
A8: 2023-11-01 | B8: أعمال مستحقة | C8: مستخلصات | D8: مستخلص معده لودر 910 عدد 13 يومية عن الفترة من 01/10/2023 و الي 31/10/2023 | E8: مشروع اعمال مجمع الثلاجات البطاطس محطة الفرز و التعبئة /2023 | F8: - | G8: لودر 910 | H8: يوميات | I8: 26 | J8: 1154 | K8: 30000 | L8: مذكرة | N8: =K8 -> 30000 | O8: -42000
A9: 2023-11-16 | B9: دفعات بنكية | C9: 78641839 | D9: دفعه للمقاول بشيك مسحوب على بنك مصر | E9: مشروع اعمال مجمع الثلاجات البطاطس محطة الفرز و التعبئة /2023 | M9: 42000 | O9: 0
A10: 2023-11-30 | B10: أعمال مستحقة | C10: مستخلصات | D10: مستخلص جاري 3 معده لودر 910 عدد 26 يومية عن الفترة من 01/11/2023 و الي 30/11/2023 | E10: مشروع اعمال مجمع الثلاجات البطاطس محطة الفرز و التعبئة /2023 | F10: - | G10: لودر 910 | H10: يوميات | I10: 26 | J10: 1154 | K10: 30000 | L10: جاري 3 | N10: =K10 -> 30000 | O10: -30000
A11: 2023-12-04 | B11: دفعات نقدية | C11: 1680 | D11: دفعة نقدية من عهدة محاسب الموقع / وليد سامي سلفة من مستخلص الشهر | E11: مشروع اعمال مجمع الثلاجات البطاطس محطة الفرز و التعبئة /2023 | F11: - | G11: - | H11: - | I11: - | J11: - | K11: - | L11: - | M11: 200 | O11: -29800
A12: 2023-12-07 | B12: دفعات بنكية | C12: 79689982 | D12: دفعه للمقاول بشيك مسحوب على بنك مصر | E12: مشروع اعمال مجمع الثلاجات البطاطس محطة الفرز و التعبئة /2023 | M12: 30000 | O12: 200
A13: 2023-12-25 | B13: دفعات نقدية | C13: 1689 | D13: دفعة نقدية من عهدة محاسب الموقع / وليد سامي سلفة من مستخلص الشهر | E13: مشروع اعمال مجمع الثلاجات البطاطس محطة الفرز و التعبئة /2023 | F13: - | G13: - | H13: - | I13: - | J13: - | K13: - | L13: - | M13: 200 | O13: 400
A14: 2023-12-31 | B14: أعمال مستحقة | C14: مستخلصات | D14: مستخلص جاري 4 معده لودر 910 عدد 26 يومية عن الفترة من 01/12/2023 و الي 31/12/2023 | E14: مشروع اعمال مجمع الثلاجات البطاطس محطة الفرز و التعبئة /2023 | F14: - | G14: لودر 910 | H14: يوميات | I14: 26 | J14: 1154 | K14: 30000 | L14: جاري 4 | N14: =K14 -> 30000 | O14: -29600
A15: 2024-01-09 | B15: دفعات بنكية | C15: 95158747 | D15: دفعه للمقاول بشيك مسحوب على بنك مصر | E15: مشروع اعمال مجمع الثلاجات البطاطس محطة الفرز و التعبئة /2023 | M15: 29800 | O15: 200
A16: 2024-01-31 | B16: أعمال مستحقة | C16: مستخلصات | D16: مستخلص جاري 5 / توريد معده لودر 910 عدد 26 يومية + 2 يوم اصافى * 1154 ج / من 01-01-2024 و الي 31-1-2024 | E16: مشروع اعمال مجمع الثلاجات البطاطس محطة الفرز و التعبئة /2023 | G16: لودر 910 | H16: يوميات | I16: 28 | J16: 1154 | K16: =J16*I16 -> 32312 | L16: جاري 5 | N16: 32312 | O16: -32112
A17: 2024-02-06 | B17: دفعات بنكية | C17: 95703736 | D17: دفعه للمقاول بشيك مسحوب على بنك مصر | E17: مشروع اعمال مجمع الثلاجات البطاطس محطة الفرز و التعبئة /2023 | M17: 32314 | O17: 202
A18: 2024-02-29 | B18: دفعات نقدية | D18: عهده من محاسب الموقع | E18: مشروع اعمال مجمع الثلاجات البطاطس محطة الفرز و التعبئة /2023 | M18: 1000 | O18: 1202
A19: 2024-02-29 | B19: أعمال مستحقة | C19: مستخلصات | D19: مستخلص جاري 6 / محمد سمير ابراهيم احمد / توريد معده لودر 910 عدد 26 يومية * 1154 ج / من 01-02-2024 و الي 29-02-2024 | E19: مشروع اعمال مجمع الثلاجات البطاطس محطة الفرز و التعبئة /2023 | G19: لودر 910 | H19: يوميات | I19: 26 | J19: =K19/I19 -> 1153.846154 | K19: 30000 | L19: جاري 6 | N19: 30000 | O19: -28798
A20: 2024-03-25 | B20: دفعات بنكية | C20: 96337207 | D20: دفعه للمقاول بشيك مسحوب على بنك مصر بعد الغاء شيك رقم 96337201 بنفس القيمه | E20: مشروع اعمال مجمع الثلاجات البطاطس محطة الفرز و التعبئة /2023 | M20: 28798 | O20: 0

Sheet احمدثابت
A1: 328 | B1: أحمد ثابت عبد العزيز تركي | D1: 2023 | P1: =SUBTOTAL(9,P4:P76) -> 36180 | Q1: =SUBTOTAL(9,Q4:Q76) -> 36180 | R1: =P1-Q1 -> 0
A3: التاريخ | B3: الحركة /رقم القيد | C3: رقم الشيك | D3: البيــان | E3: اسم المشروع | F3: رقم العقد | G3: بند الاعمال | H3: كمية العقد | I3: سعر البند | J3: قيمة العقد | K3: الوحده | L3: الكمية | M3: السعر | N3: قيمة المستخلص | O3: رقم المستخلص | P3: مدين | Q3: دائن | R3: رصيـد
D4: 2023-01-01 | P4: ='[1]ارصده المقاولين'!K159 -> 0 | Q4: ='[1]ارصده المقاولين'!L159 -> 0
A5: 2023-10-08 | B5: استحقاق | C5: مذكرة أعمال | D5: مذكرة استحقاق للمقاول أحمد ثابت تركي بقيمة 77 ساعة قيمة الساعة 370 جنيه لمعدة لودر | E5: مشروع اعمال مجمع الثلاجات البطاطس محطة الفرز و التعبئة /2023 | F5: لا يوجد | G5: معده لودر | H5: - | I5: - | J5: - | K5: ساعة | L5: 77 | M5: 370 | N5: =M5*L5 -> 28490 | O5: مذكرة | Q5: =N5 -> 28490 | R5: =R4+P5-Q5 -> -28490
A6: 2023-10-17 | B6: استحقاق | C6: مذكرة أعمال | D6: مذكرة استحقاق للمقاول أحمد ثابت تركي بقيمة 5 يومية قيمة الساعة 1538 جنيه لمعدة هراس | E6: مشروع اعمال مجمع الثلاجات البطاطس محطة الفرز و التعبئة /2023 | F6: لا يوجد | G6: هراس | H6: - | I6: - | J6: - | K6: يومية | L6: 5 | M6: 1538 | N6: =M6*L6 -> 7690 | O6: مذكرة | Q6: =N6 -> 7690 | R6: =R5+P6-Q6 -> -36180
A7: 2023-11-20 | B7: دفعات بنكية | C7: 78873099 | D7: دفعه بنكيه للمقاول بشيك مسحوب على بنك مصر | E7: مشروع اعمال مجمع الثلاجات البطاطس محطة الفرز و التعبئة /2023 | P7: 36180 | R7: =R6+P7-Q7 -> 0

Sheet يثرب
A1: 350 | B1: شركة يثرب للهندسة و المقاولات | D1: 01.01.2023 | P1: =SUBTOTAL(9,P4:P150) -> 65070549.04 | Q1: =SUBTOTAL(9,Q4:Q150) -> 5739081 | R1: =P1-Q1 -> 59331468.04
A3: التاريخ | B3: الحركة /رقم القيد | C3: رقم الشيك | D3: البيــان | E3: اسم المشروع | F3: رقم العقد | G3: بند الاعمال | H3: كمية العقد | I3: سعر البند | J3: قيمة العقد | K3: الوحدة | L3: الكمية المنفذة | M3: السعر | N3: قيمة المستخلص | O3: رقم المستخلص | P3: مدين | Q3: دائن | R3: رصيـد
D4: 2023 | P4: ='[1]ارصده المقاولين'!K159 -> 0 | Q4: ='[1]ارصده المقاولين'!L159 -> 0
A5: 2023-09-04 | B5: دفعات بنكية | C5: 77714704 | D5: دفعة للمقاول بشيك بنكي مسحوب على بنك مصر | E5: مشروع اعمال مجمع الثلاجات البطاطس محطة الفرز و التعبئة /2023 | F5: - | G5: - | H5: - | I5: - | J5: - | K5: - | L5: - | M5: - | N5: - | O5: - | P5: 1000000 | R5: =R4+P5-Q5 -> 1000000
A6: 2023-09-18 | B6: دفعات بنكية | C6: تحويل بنكي | D6: تحويل بنكي من حساب بنك مصر | E6: مشروع اعمال مجمع الثلاجات البطاطس محطة الفرز و التعبئة /2023 | F6: - | G6: - | H6: - | I6: - | J6: - | K6: - | L6: - | M6: - | N6: - | O6: - | P6: 1000000 | R6: =R5+P6-Q6 -> 2000000
A7: 2023-09-30 | B7: خصم | C7: مذكرة خصم | D7: مذكرة خصم نقلات مياه 19 نقلة يومية عن الفترة ممن 01/09/2023 و الي 30/09/2023 | E7: مشروع اعمال مجمع الثلاجات البطاطس محطة الفرز و التعبئة /2023 | F7: - | G7: - | H7: - | I7: - | J7: - | K7: - | L7: - | M7: - | N7: - | O7: - | P7: 2449 | R7: =R6+P7-Q7 -> 2002449
A8: 2023-09-30 | B8: خصم | C8: مذكرة خصم | D8: مذكرة خصم معدة لودر 910 *** عدد الساعات 3.75 عن الفترة من 01/09/2023 و الي 30/09/2023 | E8: مشروع اعمال مجمع الثلاجات البطاطس محطة الفرز و التعبئة /2023 | F8: - | G8: - | H8: - | I8: - | J8: - | K8: - | L8: - | M8: - | N8: - | O8: - | P8: 678 | R8: 2003127
A9: 2023-10-01 | B9: خصم | C9: مذكرة خصم | D9: مذكرة خصم على المقاول معدة لودر - عدد ساعات 5 ساعة سعر الساعة 370 جنيه | E9: مشروع اعمال مجمع الثلاجات البطاطس محطة الفرز و التعبئة /2023 | F9: - | G9: - | H9: - | I9: - | J9: - | K9: - | L9: - | M9: - | N9: - | O9: - | P9: =5*370 -> 1850 | R9: 2004977
A10: 2023-10-17 | B10: خصم | C10: مذكرة خصم | D10: مذكرة خصم على المقاول معدة هراس - عدد اليوميات 2 يومية سعر اليومية 1538 جنيه | E10: مشروع اعمال مجمع الثلاجات البطاطس محطة الفرز و التعبئة /2023 | F10: - | G10: - | H10: - | I10: - | J10: - | K10: - | L10: - | M10: - | N10: - | O10: - | P10: 3076 | R10: 2008053
A11: 2023-10-29 | B11: دفعات بنكية | C11: تحويل بنكي | D11: تحويل بنكي من حساب الشركة ببنك أبو ظبي التجاري | E11: مشروع اعمال مجمع الثلاجات البطاطس محطة الفرز و التعبئة /2023 | F11: - | G11: - | H11: - | I11: - | J11: - | K11: - | L11: - | M11: - | N11: - | O11: - | P11: 3000000 | R11: 5008053
A12: 2023-11-01 | B12: خصم | C12: مذكرة خصم | D12: مذكرة خصم نقلات مياه 25 نقلة يومية عن الفترة ممن 01/10/2023 و الي 31/10/2023 | E12: مشروع اعمال مجمع الثلاجات البطاطس محطة الفرز و التعبئة /2023 | F12: - | G12: - | H12: - | I12: - | J12: - | K12: - | L12: - | M12: - | N12: - | O12: - | P12: 3871 | R12: 5011924
A13: 2023-11-01 | B13: خصم | C13: مذكرة خصم | D13: مذكرة خصم معدة لودر 910 *** عدد الساعات 17 عن الفترة من 01/10/2023 و الي 31/10/2023 | E13: مشروع اعمال مجمع الثلاجات البطاطس محطة الفرز و التعبئة /2023 | F13: - | G13: - | H13: - | I13: - | J13: - | K13: - | L13: - | M13: - | N13: - | O13: - | P13: 4215 | R13: 5016139
A14: 2023-11-11 | B14: دفعات بنكية | C14: تحويل بنكي | D14: تحويل بنكي من حساب الشركة ببنك أبو ظبي التجاري | E14: مشروع اعمال مجمع الثلاجات البطاطس محطة الفرز و التعبئة /2023 | P14: 0 | R14: 5016139
A15: 2023-11-16 | B15: دفعات بنكية | C15: تحويل بنكي | D15: تحويل بنكي من حساب الشركة ببنك أبو ظبي التجاري | E15: مشروع اعمال مجمع الثلاجات البطاطس محطة الفرز و التعبئة /2023 | P15: 5000000 | R15: 10016139
A16: 2023-11-22 | B16: أعمال مستحقة | C16: مستخلصات | D16: مستخلص شراء 4.25 طن حديد تسليح *41500 جنيه /طن | E16: مشروع اعمال مجمع الثلاجات البطاطس محطة الفرز و التعبئة /2023 | Q16: =4.25*41500 -> 176375 | R16: 9839764
A17: 2023-12-06 | B17: دفعات بنكية | C17: تحويل بنكي | D17: تحويل بنكي من حساب الشركة ببنك مصر | E17: مشروع اعمال مجمع الثلاجات البطاطس محطة الفرز و التعبئة /2023 | P17: 250000 | R17: 10089764
A18: 2023-11-30 | B18: خصم | C18: مذكرة خصم | D18: مذكرة خصم معدة لودر 910 *** عدد الساعات 21 عن الفترة من 01/11/2023 و الي 30/11/2023 | E18: مشروع اعمال مجمع الثلاجات البطاطس محطة الفرز و التعبئة /2023 | P18: 5676 | R18: 10095440
A19: 2023-11-30 | B19: خصم | C19: اشعار خصم | D19: اشعار خصم نقلات مياه 31 نقلة يومية عن الفترة ممن 01/11/2023 و الي 30/11/2023 | E19: مشروع اعمال مجمع الثلاجات البطاطس محطة الفرز و التعبئة /2023 | P19: 5352 | R19: 10100792
A20: 2023-12-12 | B20: دفعات بنكية | C20: تحويل بنكي | D20: تحويل بنكي من حساب الشركة ببنك مصر | E20: مشروع اعمال مجمع الثلاجات البطاطس محطة الفرز و التعبئة /2023 | P20: 50000 | R20: 10150792
A21: 2023-12-13 | B21: دفعات بنكية | C21: تحويل بنكي | D21: تحويل بنكي من حساب الشركة ببنك مصر | E21: مشروع اعمال مجمع الثلاجات البطاطس محطة الفرز و التعبئة /2023 | P21: 2500000 | R21: 12650792
A22: 2023-12-19 | B22: دفعات بنكية | C22: تحويل بنكي | D22: تحويل بنكي من حساب الشركة ببنك مصر | E22: مشروع اعمال مجمع الثلاجات البطاطس محطة الفرز و التعبئة /2023 | P22: 2000000 | R22: 14650792
A23: 2023-12-31 | B23: خصم | C23: اشعار خصم | D23: اشعار خصم نقلات مياه 69 نقلة يومية * 158.93 جنيه من 01/12/2023 و الي 31/12/2023 (مرفق بجاري 4 للمقاول رمضان عبد الحكيم محمد ) | E23: مشروع اعمال مجمع الثلاجات البطاطس محطة الفرز و التعبئة /2023 | P23: 10966 | R23: 14661758
A24: 2023-12-31 | B24: خصم | C24: اشعار خصم | D24: مذكرة خصم معدة لودر 910 *** عدد الساعات74 ساعه *209.82 جنيه من 01/12/2023 و الي 31/12/2023 ( مرفق بجاري 4 للمقاول محمد سمير ابراهيم ) | E24: مشروع اعمال مجمع الثلاجات البطاطس محطة الفرز و التعبئة /2023 | P24: 15527 | R24: 14677285
A25: 2024-01-03 | B25: دفعات بنكية | C25: تحويل بنكي | D25: تحويل بنكي من حساب الشركة ببنك مصر | E25: مشروع اعمال مجمع الثلاجات البطاطس محطة الفرز و التعبئة /2023 | P25: 2500000 | R25: 17177285
A26: 2024-01-04 | B26: دفعات بنكية | C26: تحويل بنكي | D26: تحويل بنكي من حساب الشركة ببنك مصر | E26: مشروع اعمال مجمع الثلاجات البطاطس محطة الفرز و التعبئة /2023 | P26: 5000000 | R26: 22177285
A27: 2024-01-08 | B27: دفعات بنكية | C27: تحويل بنكي | D27: تحويل بنكي من حساب الشركة ببنك مصر | E27: مشروع اعمال مجمع الثلاجات البطاطس محطة الفرز و التعبئة /2023 | P27: 2500000 | R27: 24677285
A28: 2024-01-15 | B28: دفعات بنكية | C28: تحويل بنكي | D28: تحويل بنكي من حساب الشركة ببنك مصر | E28: مشروع اعمال مجمع الثلاجات البطاطس محطة الفرز و التعبئة /2023 | P28: 4000000 | R28: 28677285
A29: 2024-02-01 | B29: دفعات بنكية | C29: تحويل بنكي | D29: تحويل بنكي من حساب الشركة ببنك مصر | E29: مشروع اعمال مجمع الثلاجات البطاطس محطة الفرز و التعبئة /2023 | P29: 2500000 | R29: 31177285
A30: 2024-01-31 | B30: خصم | C30: اشعار خصم | D30: اشعار خصم نقلات مياه 124 نقلة يومية * 119.1 جنيه من 01-01-2024 و الي 31-01-2024 (مرفق بجاري 5 للمقاول رمضان عبد الحكيم محمد ) | E30: مشروع اعمال مجمع الثلاجات البطاطس محطة الفرز و التعبئة /2023 | P30: 14768 | R30: 31192053
A31: 2024-01-31 | B31: خصم | C31: اشعار خصم | D31: اشعار خصم معدة لودر 910 *** عدد الساعات 145 ساعه * 153.87 ج من 01-01-2024 الي 31-01-2024 ( مرفق بجاري 5 للمقاول محمد سمير ابراهيم ) | E31: مشروع اعمال مجمع الثلاجات البطاطس محطة الفرز و التعبئة /2023 | P31: 22311 | R31: 31214364
A32: 2024-01-20 | B32: اضافه | C32: مذكرة اضافه | D32: مذكرة استلام خامات تخصم من شركة الصرح عدد 3840 طوبة من شركة يثرب ( تضاف له ) بسعر 1400 ج/للالف | E32: مشروع اعمال مجمع الثلاجات البطاطس محطة الفرز و التعبئة /2023 | Q32: 5376 | R32: 31208988
A33: 2024-01-20 | B33: اضافه | C33: مذكرة اضافه | D33: مذكرة استلام خامات تخصم من شركة الصرح عدد 98 شيكاره من شركة يثرب ( تضاف له ) بسعر 160 ج/للشكاره | E33: مشروع اعمال مجمع الثلاجات البطاطس محطة الفرز و التعبئة /2023 | Q33: 15680 | R33: 31193308
A34: 2024-01-01 | B34: اضافه | C34: مذكرة اضافه | D34: مذكرة خصم على شركة ستون تضاف الى شركة يثرب عن مصاريف B2 ( عماله +نجارين + الهزاز + هليكوبتر +مواد +حداده +5هيلتى +مولد +عربيه نقل ) | E34: مشروع اعمال مجمع الثلاجات البطاطس محطة الفرز و التعبئة /2023 | Q34: 32500 | R34: 31160808
A35: 2024-01-01 | B35: اضافه | C35: مذكرة اضافه | D35: مذكرة اعمال اضافيه تخصم على شركة فيوتشر وتضاف لشركة يثرب ( عماله 3300 ج + حداده 4200 ج + 2هيلتى 300 ج +مولد 450 ج +عربيه 1300 ج ) | E35: مشروع اعمال مجمع الثلاجات البطاطس محطة الفرز و التعبئة /2023 | Q35: 9550 | R35: 31151258
A36: 2024-02-08 | B36: مذكره | C36: مذكرة اضافه | D36: مذكره خصم على المقاول ايمن شوقى لصالح شركة يثرب للهندسه م. مصطفى الشاذلى | E36: مشروع اعمال مجمع الثلاجات البطاطس محطة الفرز و التعبئة /2023 | Q36: 80000 | R36: 31071258 | S36: قيد رقم 29 عند ثروت مشروع الفك
A37: 2024-02-13 | B37: دفعات بنكية | C37: تحويل بنكي | D37: تحويل الي شركة اليثرب للمقاولات لسداد دفعه تم تحويلها الي المقاول ايمن شوقي سعيد مهدي السبعاوي مشروع فك وتركيب الصوب الزراعية ( الصوب الاسبانى ) باللاهون / 2023 | E37: مشروع اعمال مجمع الثلاجات البطاطس محطة الفرز و التعبئة /2023 | P37: 80000 | R37: 31151258
A38: 2024-02-06 | B38: دفعات بنكية | C38: تحويل بنكي | D38: تحويل بنكي من حساب الشركة ببنك مصر | E38: مشروع اعمال مجمع الثلاجات البطاطس محطة الفرز و التعبئة /2023 | P38: 2500000 | R38: 33651258
A39: 2024-03-03 | B39: دفعات بنكية | C39: تحويل بنكي | D39: تحويل بنكي من حساب الشركة ببنك مصر | E39: مشروع اعمال مجمع الثلاجات البطاطس محطة الفرز و التعبئة /2023 | P39: 500000 | R39: 34151258
A40: 2024-03-04 | B40: دفعات بنكية | C40: تحويل بنكي | D40: تحويل بنكي من حساب الشركة ببنك مصر | E40: مشروع اعمال مجمع الثلاجات البطاطس محطة الفرز و التعبئة /2023 | P40: 1000000 | R40: 35151258
A41: 2024-03-06 | B41: دفعات بنكية | C41: تحويل بنكي | D41: تحويل بنكي من حساب الشركة ببنك مصر | E41: مشروع اعمال مجمع الثلاجات البطاطس محطة الفرز و التعبئة /2023 | P41: 500000 | R41: 35651258
A42: 2024-03-14 | B42: دفعات بنكية | C42: تحويل بنكي | D42: تحويل بنكي من حساب الشركة ببنك مصر | E42: مشروع اعمال مجمع الثلاجات البطاطس محطة الفرز و التعبئة /2023 | P42: 7000000 | R42: 42651258
A43: 2024-03-14 | B43: دفعات بنكية | C43: تحويل بنكي | D43: تحويل بنكي من حساب الشركة ببنك مصر | E43: مشروع اعمال مجمع الثلاجات البطاطس محطة الفرز و التعبئة /2023 | P43: 500000 | R43: 43151258
A44: 2024-02-29 | B44: خصم | C44: اشعار خصم | D44: اشعار خصم نقلات مياه 99 نقلة يومية * 147.24 جنيه من 01-02-2024 و الي 29-02-2024 (مرفق بجاري 6 للمقاول رمضان عبد الحكيم محمد ) | E44: مشروع اعمال مجمع الثلاجات البطاطس محطة الفرز و التعبئة /2023 | P44: 14577 | R44: 43165835
A45: 2024-02-29 | B45: خصم | C45: اشعار خصم | D45: اشعار خصم معدة لودر 910 *** عدد الساعات 54 ساعه * 220.59 ج من 01-02-2024 الي 29-02-2024 ( مرفق بجاري 6 للمقاول محمد سمير ابراهيم ) | E45: مشروع اعمال مجمع الثلاجات البطاطس محطة الفرز و التعبئة /2023 | P45: 11912 | R45: 43177747
A46: 2024-03-27 | B46: دفعات بنكية | C46: تحويل بنكي | D46: تحويل بنكي من حساب الشركة ببنك مصر | E46: مشروع اعمال مجمع الثلاجات البطاطس محطة الفرز و التعبئة /2023 | P46: 7500000 | R46: 50677747
A47: 2024-04-08 | B47: دفعات بنكية | C47: تحويل بنكي | D47: تحويل بنكي من حساب الشركة ببنك مصر | E47: مشروع اعمال مجمع الثلاجات البطاطس محطة الفرز و التعبئة /2023 | P47: 2000000 | R47: 52677747
A48: 2024-03-30 | B48: خصم | D48: عدد42.58 س *322.31 | P48: 13698 | R48: 52691445
A49: 2024-03-30 | B49: خصم | D49: مياه 67*161.07 | P49: 11176 | R49: 52702621
A50: 2024-04-22 | P50: 7000000 | R50: 59702621
A51: 2024-05-20 | P51: 1000000 | R51: 60702621
A52: 2024-04-30 | P52: 10792 | R52: 60713413
A53: 2024-05-25 | P53: 2500000 | R53: 63213413
A54: 2024-06-12 | P54: 200000 | R54: 63413413
A55: 2024-06-22 | P55: 75000 | R55: 63488413
A56: 2024-05-31 | P56: 12655.04 | R56: 63501068.04
A57: 2024-07-17 | P57: 250000 | R57: 63751068.04
A58: 2024-07-22 | P58: 1000000 | R58: 64751068.04
A59: 2024-09-22 | Q59: 1630000 | R59: 63121068.04
A60: 2024-09-22 | Q60: 988600 | R60: 62132468.04
A61: 2024-09-22 | Q61: 2150000 | R61: 59982468.04
A62: 2024-09-22 | Q62: 651000 | R62: 59331468.04

Sheet عمرابوسريع
A1: 351 | B1: عمر ابو سريع موسي سرور | D1: 2023 | P1: =SUBTOTAL(9,P4:P36) -> 1179163.2 | Q1: =SUBTOTAL(9,Q4:Q36) -> 980052 | R1: =P1-Q1 -> 199111.2
A3: التاريخ | B3: الحركة /رقم القيد | C3: رقم الشيك | D3: البيــان | E3: اسم المشروع | F3: رقم العقد | G3: بند الاعمال | H3: كمية العقد | I3: سعر البند | J3: قيمة العقد | K3: نسبة الانجاز | L3: رقم الكلاستر | M3: رقم الصوبة | N3: قيمة المستخلص | O3: رقم المستخلص | P3: مدين | Q3: دائن | R3: رصيـد
D4: 01.01.2023 | P4: ='[1]ارصده المقاولين'!K159 -> 0 | Q4: ='[1]ارصده المقاولين'!L159 -> 0
A5: 2023-09-26 | B5: خصم | C5: مذكرة خصم | D5: مذكرة خصم مقابل توريد 20 طن أسمنت للمقاول | E5: مشروع اعمال مجمع الثلاجات البطاطس محطة الفرز و التعبئة /2023 | F5: - | G5: - | H5: - | I5: - | J5: - | K5: - | L5: - | M5: - | N5: - | O5: - | P5: 43000 | R5: =R4+P5-Q5 -> 43000
A6: 2023-09-26 | B6: دفعات بنكية | C6: تحويل بنكي | D6: تحويل من حساب الشركة ببنك مصر | E6: مشروع اعمال مجمع الثلاجات البطاطس محطة الفرز و التعبئة /2023 | F6: - | G6: - | H6: - | I6: - | J6: - | K6: - | L6: - | M6: - | N6: - | O6: - | P6: 250000 | R6: 293000
A7: 2023-09-30 | B7: خصم | C7: مذكرة خصم | D7: مذكرة خصم عدد 18 نقلة *** عن الفترة من 01/09/2023 و الي 30/09/2023 | E7: مشروع اعمال مجمع الثلاجات البطاطس محطة الفرز و التعبئة /2023 | F7: - | G7: - | H7: - | I7: - | J7: - | K7: - | L7: - | M7: - | N7: - | O7: - | P7: 2320 | R7: 295320
A8: 2023-09-30 | B8: خصم | C8: مذكرة خصم | D8: مذكرة خصم معدة لودر 910 ** عد الساعات 31 ساعة ** عن الفترة من 01/09/2023 و الي 30/09/2023 | E8: مشروع اعمال مجمع الثلاجات البطاطس محطة الفرز و التعبئة /2023 | F8: - | G8: - | H8: - | I8: - | J8: - | K8: - | L8: - | M8: - | N8: - | O8: - | P8: 5603 | R8: 300923
A9: 2023-10-08 | B9: خصم | C9: مذكرة خصم | D9: مذكرة خصم على المقاول معدة لودر - عدد ساعات 8 ساعة سعر الساعة 370 جنيه | E9: مشروع اعمال مجمع الثلاجات البطاطس محطة الفرز و التعبئة /2023 | F9: - | G9: - | H9: - | I9: - | J9: - | K9: - | L9: - | M9: - | N9: - | O9: - | P9: 2960 | R9: 303883
A10: 2023-10-27 | B10: دفعات بنكية | C10: تحويل بنكي | D10: تحويل من حساب الشركة ببنك مصر | E10: مشروع اعمال مجمع الثلاجات البطاطس محطة الفرز و التعبئة /2023 | F10: - | G10: - | H10: - | I10: - | J10: - | K10: - | L10: - | M10: - | N10: - | O10: - | P10: 250000 | R10: 553883
A11: 2023-11-01 | B11: خصم | C11: مذكرة خصم | D11: مذكرة خصم عدد 25 نقلة *** عن الفترة من 01/10/2023 و الي 31/10/2023 | E11: مشروع اعمال مجمع الثلاجات البطاطس محطة الفرز و التعبئة /2023 | F11: - | G11: - | H11: - | I11: - | J11: - | K11: - | L11: - | M11: - | N11: - | O11: - | P11: 3871 | R11: 557754
A12: 2023-11-01 | B12: خصم | C12: مذكرة خصم | D12: مذكرة خصم معدة لودر 910 ** عد الساعات 31 ساعة ** عن الفترة من 01/10/2023 و الي 31/10/2023 | E12: مشروع اعمال مجمع الثلاجات البطاطس محطة الفرز و التعبئة /2023 | F12: - | G12: - | H12: - | I12: - | J12: - | K12: - | L12: - | M12: - | N12: - | O12: - | P12: 8431 | R12: 566185
A13: 2023-11-09 | B13: دفعات بنكية | C13: تحويل بنكي | D13: تحويل من حساب الشركة ببنك مصر | E13: مشروع اعمال مجمع الثلاجات البطاطس محطة الفرز و التعبئة /2023 | F13: - | G13: - | H13: - | I13: - | J13: - | K13: - | L13: - | M13: - | N13: - | O13: - | P13: 100000 | R13: 666185
A14: 2023-11-30 | B14: خصم | C14: مذكرة خصم | D14: مذكرة خصم معدة لودر 910 ** عد الساعات 2 ساعة ** عن الفترة من 01/11/2023 و الي 30/11/2023 | E14: مشروع اعمال مجمع الثلاجات البطاطس محطة الفرز و التعبئة /2023 | P14: 541 | R14: 666726
A15: 2023-11-30 | B15: خصم | C15: اشعار خصم | D15: اشعار خصم عدد 4 نقلة *** عن الفترة من 01/11/2023 و الي 30/11/2023 | E15: مشروع اعمال مجمع الثلاجات البطاطس محطة الفرز و التعبئة /2023 | P15: 691 | R15: 667417
A16: 2023-11-19 | B16: اعمال مستحقه | C16: مستخلصات | D16: مستخلص جاري 1 / اجمالى اعمال B1 | E16: مشروع اعمال مجمع الثلاجات البطاطس محطة الفرز و التعبئة /2023 | F16: 3&2023 | G16: اعمال B1 | N16: 821163 | Q16: =N16*90% -> 739046.7 | R16: -71629.7
A17: 2023-11-19 | B17: خصم | C17: خصم | D17: خصم قيمة 9152 طوبة من مستخلص جاري 1 * 1.35 جنيه | E17: مشروع اعمال مجمع الثلاجات البطاطس محطة الفرز و التعبئة /2023 | F17: 3&2023 | G17: اعمال B1 | P17: =9152*1.35 -> 12355.2 | R17: -59274.5
A18: 2023-11-19 | B18: رد تامين | C18: رد | D18: اثبات رد تامين ال 10 % عن اعمال جاري 1 - اعمال B1 - بناء على تعليمان م / رمضان | E18: مشروع اعمال مجمع الثلاجات البطاطس محطة الفرز و التعبئة /2023 | F18: 3&2023 | G18: اعمال B1 | Q18: 82116.3 | R18: -141390.8
A19: 2024-02-01 | B19: دفعات بنكية | C19: 95451438 | D19: دفعه للمقاول بشيك مسحوب على بنك مصر | E19: مشروع اعمال مجمع الثلاجات البطاطس محطة الفرز و التعبئة /2023 | P19: 141391 | R19: 0.1999999999
A20: 2024-02-20 | B20: مذكرة اضافه | C20: اضافه | D20: اثبات مذكرةه اضافه مبغ 58889 ج متبقى قيمة اعماله بالكامل فى مشروع التلاجات وليس لديه اي مستحقات اخرى لدى الشركة | E20: مشروع اعمال مجمع الثلاجات البطاطس محطة الفرز و التعبئة /2023 | Q20: 58889 | R20: -58888.8
A21: 2024-03-25 | B21: مذكرة اضافه | C21: اضافه | D21: اثبات مذكرةه اضافه مبغ 100000 ج يتم صرفهم بعد تسليم الواجهه الخاصه بالثلاجات للاستشارى | E21: مشروع اعمال مجمع الثلاجات البطاطس محطة الفرز و التعبئة /2023 | Q21: 100000 | R21: -158888.8
A22: 2024-03-25 | B22: دفعات بنكية | C22: 96337203 | D22: دفعه للمقاول بشيك مسحوب على بنك مصر | E22: مشروع اعمال مجمع الثلاجات البطاطس محطة الفرز و التعبئة /2023 | P22: 158000 | R22: -888.8
A23: 2024-11-05 | B23: دفعات بنكية | D23: دفعه للمقاول بشيك مسحوب على بنك مصر | E23: مشروع اعمال مجمع الثلاجات البطاطس محطة الفرز و التعبئة /2023 | P23: 200000 | R23: 199111.2
L28: =667417-636771 -> 30646

Sheet اجرولايف
A1: 355 | B1: شركة أجرولايف للمقاولات و التوريدات | D1: 2023 | P1: =SUBTOTAL(9,P4:P124) -> 3782563 | Q1: =SUBTOTAL(9,Q4:Q124) -> 0 | R1: =P1-Q1 -> 3782563
A3: التاريخ | B3: الحركة /رقم القيد | C3: رقم الشيك | D3: البيــان | E3: اسم المشروع | F3: رقم العقد | G3: بند الاعمال | H3: كمية العقد | I3: سعر البند | J3: قيمة العقد | K3: الوحدة | L3: الكمية | M3: السعر | N3: قيمة المستخلص | O3: رقم المستخلص | P3: مدين | Q3: دائن | R3: رصيـد
D4: 01.01.2023 | P4: ='[1]ارصده المقاولين'!K159 -> 0 | Q4: ='[1]ارصده المقاولين'!L159 -> 0
A5: 2023-09-04 | B5: دفعات بنكية | C5: تحويل بنكي | D5: تحويل بنكي للمقاول من بنك مصر | E5: مشروع اعمال مجمع الثلاجات البطاطس محطة الفرز و التعبئة /2023 | F5: - | G5: - | H5: - | I5: - | J5: - | K5: - | L5: - | M5: - | N5: - | O5: - | P5: 1000000 | R5: =R4+P5-Q5 -> 1000000
A6: 2023-09-18 | B6: دفعات بنكية | C6: تحويل بنكي | D6: تحويل بنكي للمقاول من بنك مصر | E6: مشروع اعمال مجمع الثلاجات البطاطس محطة الفرز و التعبئة /2023 | F6: - | G6: - | H6: - | I6: - | J6: - | K6: - | L6: - | M6: - | N6: - | O6: - | P6: 1000000 | R6: 2000000
A7: 2023-09-30 | B7: خصم | C7: مذكرة خصم | D7: مذكرة خصم عدد 47 نقلة مياه سعر النقلة 154 عن الفترة من 01/09/2023 و الي 30/09/2023 | E7: مشروع اعمال مجمع الثلاجات البطاطس محطة الفرز و التعبئة /2023 | F7: - | G7: - | H7: - | I7: - | J7: - | K7: - | L7: - | M7: - | N7: - | O7: - | P7: 6059 | R7: 2006059
A8: 2023-10-08 | B8: خصم | C8: مذكرة خصم | D8: مذكرة خصم على المقاول معدة لودر - عدد ساعات 33.5 ساعة سعر الساعة 370 جنيه | E8: مشروع اعمال مجمع الثلاجات البطاطس محطة الفرز و التعبئة /2023 | F8: - | G8: - | H8: - | I8: - | J8: - | K8: - | L8: - | M8: - | N8: - | O8: - | P8: 12395 | R8: 2018454
A9: 2023-10-17 | B9: خصم | C9: مذكرة خصم | D9: مذكرة خصم على المقاول معدة هراس - عدد اليوميات 3 يومية سعر اليومية 1538 جنيه | E9: مشروع اعمال مجمع الثلاجات البطاطس محطة الفرز و التعبئة /2023 | F9: - | G9: - | H9: - | I9: - | J9: - | K9: - | L9: - | M9: - | N9: - | O9: - | P9: 4614 | R9: 2023068
A10: 2023-10-17 | B10: خصم | C10: مذكرة خصم | D10: مذكرة خصم 19.5 ساعة لودر 910 ** | E10: مشروع اعمال مجمع الثلاجات البطاطس محطة الفرز و التعبئة /2023 | F10: - | G10: - | H10: - | I10: - | J10: - | K10: - | L10: - | M10: - | N10: - | O10: - | P10: 3525 | R10: 2026593
A11: 2023-10-29 | B11: دفعات بنكية | C11: تحويل بنكي | D11: تحويل بنكي للمقاول من بنك مصر | E11: مشروع اعمال مجمع الثلاجات البطاطس محطة الفرز و التعبئة /2023 | F11: - | G11: - | H11: - | I11: - | J11: - | K11: - | L11: - | M11: - | N11: - | O11: - | P11: 500000 | R11: 2526593
A12: 2023-11-01 | B12: خصم | C12: مذكرة خصم | D12: مذكرة خصم عدد 35 نقلة مياه سعر النقلة 154 عن الفترة من 01/10/2023 و الي 31/101/2023 | E12: مشروع اعمال مجمع الثلاجات البطاطس محطة الفرز و التعبئة /2023 | F12: - | G12: - | H12: - | I12: - | J12: - | K12: - | L12: - | M12: - | N12: - | O12: - | P12: 5419 | R12: 2532012
A13: 2023-11-01 | B13: خصم | C13: مذكرة خصم | D13: مذكرة خصم 26 ساعة لودر 910 ** | E13: مشروع اعمال مجمع الثلاجات البطاطس محطة الفرز و التعبئة /2023 | F13: - | G13: - | H13: - | I13: - | J13: - | K13: - | L13: - | M13: - | N13: - | O13: - | P13: 6447 | R13: 2538459
A14: 2023-11-20 | B14: دفعات بنكية | C14: 73449736 | D14: دفعه بنكيه للمقاول بشيك مسحوب على بنك مصر | E14: مشروع اعمال مجمع الثلاجات البطاطس محطة الفرز و التعبئة /2023 | P14: 250000 | R14: 2788459
A15: 2023-11-28 | B15: خصم | C15: اشعار خصم | D15: اشعار خصم على المقاول 12 ساعه عمل قام بها المقاول محمد سميرابراهيم احمد( مستخلص جاري 3 ) | E15: مشروع اعمال مجمع الثلاجات البطاطس محطة الفرز و التعبئة /2023 | P15: 3244 | R15: 2791703
A16: 2023-11-30 | B16: خصم | C16: اشعار خصم | D16: اشعار خصم عدد 25 نقلة مياه سعر النقلة 172.65 عن الفترة من 01/11/2023 و الي 30/11/2023 | E16: مشروع اعمال مجمع الثلاجات البطاطس محطة الفرز و التعبئة /2023 | P16: 4316 | R16: 2796019
A17: 2023-12-13 | B17: دفعات بنكية | C17: تحويل بنكي | D17: تحويل بنكي للمقاول من بنك مصر | E17: مشروع اعمال مجمع الثلاجات البطاطس محطة الفرز و التعبئة /2023 | P17: 250000 | R17: 3046019
A18: 2023-12-28 | B18: دفعات نقديه | C18: 3134 | D18: ايداع في حساب شركة اجرو لايف دفعه مقدمه لحين عمل مستخلص | E18: مشروع اعمال مجمع الثلاجات البطاطس محطة الفرز و التعبئة /2023 | P18: 50000 | R18: 3096019
A19: 2023-12-31 | B19: خصم | C19: اشعار خصم | D19: اشعار خصم على المقاول 19 ساعه * 209.82 للساعه عمل قام بها المقاول محمد سميرابراهيم احمد( مستخلص جاري 4 للمقاول محمد سمير ابراهيم) | E19: مشروع اعمال مجمع الثلاجات البطاطس محطة الفرز و التعبئة /2023 | P19: 3987 | R19: 3100006
A20: 2023-12-31 | B20: خصم | C20: اشعار خصم | D20: اشعار خصم عدد 20 نقلة مياه سعر النقلة 158.93 عن الفترة من 01/12/2023 و الي 31/12/2023 ( مرفق مع مستخلص جاري 4 للمقاور رمضان عبد الحكيم ) | E20: مشروع اعمال مجمع الثلاجات البطاطس محطة الفرز و التعبئة /2023 | P20: 3179 | R20: 3103185
A21: 2024-01-03 | B21: دفعات بنكية | C21: تحويل بنكي | D21: تحويل بنكي للمقاول من بنك مصر | E21: مشروع اعمال مجمع الثلاجات البطاطس محطة الفرز و التعبئة /2023 | P21: 150000 | R21: 3253185
A22: 2024-01-08 | B22: دفعات بنكية | C22: تحويل بنكي | D22: تحويل بنكي للمقاول من بنك مصر | E22: مشروع اعمال مجمع الثلاجات البطاطس محطة الفرز و التعبئة /2023 | P22: 250000 | R22: 3503185
A23: 2024-01-31 | B23: خصم | C23: اشعار خصم | D23: اشعار خصم عدد 28 نقلة مياه سعر النقلة 119.1 عن الفترة من 01-01-2024 و الي 31-01-2024 ( مرفق مع مستخلص جاري 5 للمقاور رمضان عبد الحكيم ) | E23: مشروع اعمال مجمع الثلاجات البطاطس محطة الفرز و التعبئة /2023 | P23: 3335 | R23: 3506520
A24: 2024-01-31 | B24: خصم | C24: اشعار خصم | D24: اشعار خصم على المقاول عدد 17 ساعه * 153.87 للساعه من 01-01-2024 الى 31-01-2024 (مرفق مع مستخلص جاري 5 للمقاول محمد سمير ابراهيم) | E24: مشروع اعمال مجمع الثلاجات البطاطس محطة الفرز و التعبئة /2023 | P24: 2616 | R24: 3509136
A25: 2024-01-01 | B25: خصم | C25: اشعار خصم | D25: مستخلص اعمال اضافيه نظافه B3 ( تخصم على شركة اجرو لايف م/ احمد صادق ) عماله نظافه 15000 ج + ايجار هيلتى 3000ج + ايجار مولد 3000 ج | E25: مشروع اعمال مجمع الثلاجات البطاطس محطة الفرز و التعبئة /2023 | P25: 21000 | R25: 3530136
A26: 2024-02-01 | B26: دفعات بنكية | C26: تحويل بنكي | D26: تحويل بنكي للمقاول من بنك مصر | E26: مشروع اعمال مجمع الثلاجات البطاطس محطة الفرز و التعبئة /2023 | P26: 250000 | R26: 3780136
A27: 2024-02-29 | B27: خصم | C27: اشعار خصم | D27: اشعار خصم عدد 6 نقلة مياه سعر النقلة 147.24 عن الفترة من 01-02-2024 و الي 29-02-2024 ( مرفق مع مستخلص جاري 6 للمقاور رمضان عبد الحكيم ) | E27: مشروع اعمال مجمع الثلاجات البطاطس محطة الفرز و التعبئة /2023 | P27: 883 | R27: 3781019
A28: 2024-02-29 | B28: خصم | C28: اشعار خصم | D28: اشعار خصم على المقاول عدد 7 ساعه * 220.59 للساعه من 01-02-2024 الى 29-02-2024 (مرفق مع مستخلص جاري 6 للمقاول محمد سمير ابراهيم) | E28: مشروع اعمال مجمع الثلاجات البطاطس محطة الفرز و التعبئة /2023 | P28: 1544 | R28: 3782563

Sheet الصرح
A1: 356 | B1: شركة الصرح للمقاولات و التوريدات | D1: 2023 | P1: =SUBTOTAL(9,P4:P117) -> 3119728 | Q1: =SUBTOTAL(9,Q4:Q117) -> 1982654 | R1: =P1-Q1 -> 1137074
A3: التاريخ | B3: الحركة /رقم القيد | C3: رقم الشيك | D3: البيــان | E3: اسم المشروع | F3: رقم العقد | G3: بند الاعمال | H3: كمية العقد | I3: سعر البند | J3: قيمة العقد | K3: الوحدة | L3: الكمية | M3: السعر | N3: قيمة المستخلص | O3: رقم المستخلص | P3: مدين | Q3: دائن | R3: رصيـد
D4: 01.01.023 | P4: ='[1]ارصده المقاولين'!K159 -> 0 | Q4: ='[1]ارصده المقاولين'!L159 -> 0
A5: 2023-08-10 | B5: خصم | C5: مذكرة خصم | D5: مذكرة خصم على المقاول معدة لودر - عدد ساعات 20.5 ساعة سعر الساعة 370 جنيه | E5: مشروع اعمال مجمع الثلاجات البطاطس محطة الفرز و التعبئة /2023 | F5: - | G5: - | H5: - | I5: - | J5: - | K5: - | L5: - | M5: - | N5: - | O5: - | P5: 7585 | R5: =R4+P5-Q5 -> 7585
A6: 2023-09-04 | B6: دفعات بنكية | C6: تحويل بنكي | D6: تحويل بنكي للمقاول من بنك مصر | E6: مشروع اعمال مجمع الثلاجات البطاطس محطة الفرز و التعبئة /2023 | F6: - | G6: - | H6: - | I6: - | J6: - | K6: - | L6: - | M6: - | N6: - | O6: - | P6: 2000000 | R6: =R5+P6-Q6 -> 2007585
A7: 2023-09-30 | B7: خصم | C7: مذكرة خصم | D7: مذكرة خصم نقلات مياه عن الفترة من 01/09/2023 و الي 30/09/2023 *** عدد 52 نقلة مياه | E7: مشروع اعمال مجمع الثلاجات البطاطس محطة الفرز و التعبئة /2023 | F7: - | G7: - | H7: - | I7: - | J7: - | K7: - | L7: - | M7: - | N7: - | O7: - | P7: 6703 | R7: 2014288
A8: 2023-09-30 | B8: خصم | C8: مذكرة خصم | D8: مذكرة خصم معدة لودر 910 *** عدد الساعات 27 ساعة *** عن الفترة من 01/09/2023 و الي 30/09/023 | E8: مشروع اعمال مجمع الثلاجات البطاطس محطة الفرز و التعبئة /2023 | F8: - | G8: - | H8: - | I8: - | J8: - | K8: - | L8: - | M8: - | N8: - | O8: - | P8: 4880 | R8: 2019168
A9: 2023-10-29 | B9: دفعات بنكية | C9: تحويل بنكي | D9: تحويل بنكي للمقاول من بنك مصر | E9: مشروع اعمال مجمع الثلاجات البطاطس محطة الفرز و التعبئة /2023 | F9: - | G9: - | H9: - | I9: - | J9: - | K9: - | L9: - | M9: - | N9: - | O9: - | P9: 1000000 | R9: 3019168
A10: 2023-11-01 | B10: خصم | C10: مذكرة خصم | D10: مذكرة خصم نقلات مياه عن الفترة من 01/10/2023 و الي 31/10/2023 *** 25 نقلة | E10: مشروع اعمال مجمع الثلاجات البطاطس محطة الفرز و التعبئة /2023 | F10: - | G10: - | H10: - | I10: - | J10: - | K10: - | L10: - | M10: - | N10: - | O10: - | P10: 5419 | R10: 3024587
A11: 2023-11-01 | B11: خصم | C11: مذكرة خصم | D11: مذكرة خصم معدة لودر 910 *** عدد الساعات 23 ساعة *** عن الفترة من 01/10/2023 و الي 31/10/2023 | E11: مشروع اعمال مجمع الثلاجات البطاطس محطة الفرز و التعبئة /2023 | F11: - | G11: - | H11: - | I11: - | J11: - | K11: - | L11: - | M11: - | N11: - | O11: - | P11: 5703 | R11: 3030290
A12: 2023-11-30 | B12: خصم | C12: مذكرة خصم | D12: مذكرة خصم معدة لودر 910 *** عدد الساعات 9 ساعة *** عن الفترة من 01/11/2023 و الي 30/11/2023 | E12: مشروع اعمال مجمع الثلاجات البطاطس محطة الفرز و التعبئة /2023 | P12: 2433 | R12: 3032723
A13: 2023-11-30 | B13: خصم | C13: اشعار خصم | D13: اشعار خصم نقلات مياه عن الفترة من 01/11/2023 و الي 30/11/2023 *** 26 نقلة | E13: مشروع اعمال مجمع الثلاجات البطاطس محطة الفرز و التعبئة /2023 | P13: 4489 | R13: 3037212
A14: 2023-12-31 | B14: خصم | C14: مذكرة خصم | D14: مذكرة خصم معدة لودر 910 *** عدد الساعات 1 ساعة *** عن الفترة من 01/12/2023 و الي 31/12/2023 | E14: مشروع اعمال مجمع الثلاجات البطاطس محطة الفرز و التعبئة /2023 | P14: 210 | R14: 3037422
A15: 2024-01-01 | B15: أعمال مستحقه | C15: مستخلصات | D15: مستخلص جاري 1 ( اعمال b2 ) من بدايه الاعمال حتى تاريخ 23-12-2023 استحقاق الخرسانه | E15: مشروع اعمال مجمع الثلاجات البطاطس محطة الفرز و التعبئة /2023 | K15: م2 | L15: 23.4 | M15: 800 | N15: =M15*L15 -> 18720 | Q15: =N15 -> 18720 | R15: 3018702
A16: 2024-01-01 | B16: أعمال مستحقه | C16: مستخلصات | D16: مستخلص جاري 1 ( اعمال b2 ) من بدايه الاعمال حتى تاريخ 23-12-2023 استحقاق الطوب والاسمنت | E16: مشروع اعمال مجمع الثلاجات البطاطس محطة الفرز و التعبئة /2023 | K16: م2 | L16: 296 | M16: 1900 | N16: 562400 | Q16: =N16 -> 562400 | R16: 2456302
A17: 2024-01-01 | B17: أعمال مستحقه | C17: مستخلصات | D17: مستخلص جاري 1 ( اعمال b2 ) من بدايه الاعمال حتى تاريخ 23-12-2023 استحقاق تخشين حوائط داخليه | E17: مشروع اعمال مجمع الثلاجات البطاطس محطة الفرز و التعبئة /2023 | K17: م2 | L17: 3546.5 | M17: 150 | N17: 531975 | Q17: 531975 | R17: 1924327
A18: 2024-01-01 | B18: أعمال مستحقه | C18: مستخلصات | D18: مستخلص جاري 1 ( اعمال b2 ) من بدايه الاعمال حتى تاريخ 23-12-2023 استحقاق تخشين الاسقف والكمرات | E18: مشروع اعمال مجمع الثلاجات البطاطس محطة الفرز و التعبئة /2023 | K18: م2 | L18: 490 | M18: 150 | N18: 73500 | Q18: 73500 | R18: 1850827
A19: 2024-01-20 | B19: أعمال مستحقه | C19: مستخلصات | D19: مستخلص جاري 1 ( اعمال المسجد ) من بدايه الاعمال حتى تاريخ 20-01-2024 استحقاق تخشين الحوائط الداخليه | E19: مشروع اعمال مجمع الثلاجات البطاطس محطة الفرز و التعبئة /2023 | K19: م2 | L19: 106.6 | M19: 150 | N19: 15990 | Q19: 15990 | R19: 1834837
A20: 2024-01-20 | B20: أعمال مستحقه | C20: مستخلصات | D20: مستخلص جاري 1 ( اعمال المسجد ) من بدايه الاعمال حتى تاريخ 20-01-2024 استحقاق تخشين الاسقف الداخليه وجوانب الكمرات | E20: مشروع اعمال مجمع الثلاجات البطاطس محطة الفرز و التعبئة /2023 | K20: م2 | L20: 107.9 | M20: 150 | N20: 16185 | Q20: 16185 | R20: 1818652
A21: 2024-01-20 | B21: أعمال مستحقه | C21: مستخلصات | D21: مستخلص جاري 1 ( اعمال المبنى السكنى ) من بدايه الاعمال حتى تاريخ 20-01-2024 استحقاق اعمال محاره + اعمال كهربا + الواجهه | E21: مشروع اعمال مجمع الثلاجات البطاطس محطة الفرز و التعبئة /2023 | Q21: =550000 -> 550000 | R21: 1268652
A22: 2024-01-20 | B22: أعمال مستحقه | C22: مستخلصات | D22: مستخلص جاري 1 ( اعمال الاداري ) من بدايه الاعمال حتى تاريخ 20-01-2024 اعمال دهانات + تركيبات صرف + كهربا + محاره | E22: مشروع اعمال مجمع الثلاجات البطاطس محطة الفرز و التعبئة /2023 | Q22: 82530 | R22: 1186122
A23: 2024-01-20 | B23: أعمال مستحقه | C23: مستخلصات | D23: مستخلص اعمال اضافيه (اعمال تكسير + مبانى محاره + مرمات + فريسبيكو+عراميس + الواجهه ) | E23: مشروع اعمال مجمع الثلاجات البطاطس محطة الفرز و التعبئة /2023 | Q23: 131354 | R23: 1054768
A24: 2024-01-20 | B24: خصم | C24: مذكرة خصم | D24: مذكرة استلام خامات تخصم من شركة الصرح عدد 20000 طوبة من الهلال بسعر 1350 ج/للالف | E24: مشروع اعمال مجمع الثلاجات البطاطس محطة الفرز و التعبئة /2023 | P24: 27000 | R24: 1081768
A25: 2024-01-20 | B25: خصم | C25: مذكرة خصم | D25: مذكرة استلام خامات تخصم من شركة الصرح عدد 3840 طوبة من شركة يثرب ( تضاف له ) بسعر 1400 ج/للالف | E25: مشروع اعمال مجمع الثلاجات البطاطس محطة الفرز و التعبئة /2023 | P25: 5376 | R25: 1087144
A26: 2024-01-20 | B26: خصم | C26: مذكرة خصم | D26: مذكرة استلام خامات تخصم من شركة الصرح عدد 98 شيكاره من شركة يثرب ( تضاف له ) بسعر 160 ج/للشكاره | E26: مشروع اعمال مجمع الثلاجات البطاطس محطة الفرز و التعبئة /2023 | P26: =98*160 -> 15680 | R26: 1102824
A27: 2024-01-01 | B27: خصم | C27: مذكرة خصم | D27: مذكرة اضافه لاعمال النظافه تخصم من شركة الصرح ( عماله تنظيف + ايجار هيلتى + ايجار مولدات + يوميات عربيه توصيل ) | E27: مشروع اعمال مجمع الثلاجات البطاطس محطة الفرز و التعبئة /2023 | P27: 34250 | R27: 1137074

Sheet رمضان.عبد.الحكيم_محمد
A1: 377 | B1: رمضان عبد الحكيم محمد حسن | D1: 2023 | K1: عدد اليوميات | L1: =SUBTOTAL(9,L5:L144) -> 183 | M1: قيمة الاعمال | N1: =SUBTOTAL(9,N5:N144) -> 168915 | P1: =SUBTOTAL(9,P5:P56) -> 215992 | Q1: =SUBTOTAL(9,Q5:Q56) -> 234905.54 | R1: =P1+P4-Q1-Q4 -> -18913.54
A3: التاريخ | B3: الحركة /رقم القيد | C3: رقم الشيك | D3: البيــان | E3: اسم المشروع | F3: رقم العقد | G3: بند الاعمال | H3: بداية الاعمال | I3: نهاية الاعمال | J3: سعر البند بالعقد | K3: الوحدة | L3: الكمية | M3: السعر | N3: قيمة المستخلص | O3: رقم المستخلص | P3: مدين | Q3: دائن | R3: رصيـد
D4: 2023-01-01 | P4: ='[1]ارصده المقاولين'!K159 -> 0 | Q4: ='[1]ارصده المقاولين'!L159 -> 0
A5: 2023-09-30 | B5: أعمال مستحقة | C5: مستخلصات | D5: مستخلص توريد جرار نقل مياه عن الفترة من 02/09/2023 و الي 30/09/2023 | E5: مشروع اعمال مجمع الثلاجات البطاطس محطة الفرز و التعبئة /2023 | F5: - | G5: جرار نقل مياه | H5: 2023-09-02 | I5: 2023-09-30 | J5: - | K5: يومية | L5: 25 | M5: 923 | N5: =M5*L5 -> 23075 | O5: جاري 1 | Q5: =N5 -> 23075 | R5: =R4+P5-Q5 -> -23075
A6: 2023-10-10 | B6: دفعات بنكية | C6: 77598975 | D6: دفعة للمقاول بشيك بنكي مسحوب على بنك مصر | E6: مشروع اعمال مجمع الثلاجات البطاطس محطة الفرز و التعبئة /2023 | F6: - | G6: - | H6: - | I6: - | J6: - | K6: - | L6: - | M6: - | N6: - | O6: - | P6: 23000 | R6: =R5+P6-Q6 -> -75
A7: 2023-11-01 | B7: أعمال مستحقة | C7: مستخلصات | D7: مستخلص توريد جرار نقل مياه عن الفترة من 01/10/2023 و الي 31/10/2023 | E7: مشروع اعمال مجمع الثلاجات البطاطس محطة الفرز و التعبئة /2023 | F7: - | G7: جرار نقل مياه | H7: 2023-10-01 | I7: 2023-10-31 | J7: - | K7: يومية | L7: 26 | M7: 923 | N7: =M7*L7 -> 23998 | O7: جاري 2 | Q7: =N7 -> 23998 | R7: =R6+P7-Q7 -> -24073
A8: 2023-11-20 | B8: دفعات بنكية | C8: 78873057 | D8: دفعة للمقاول بشيك بنكي مسحوب على بنك مصر | E8: مشروع اعمال مجمع الثلاجات البطاطس محطة الفرز و التعبئة /2023 | F8: - | G8: - | H8: - | I8: - | J8: - | K8: - | L8: - | M8: - | N8: - | O8: - | P8: 24000 | R8: =R7+P8-Q8 -> -73
A9: 2023-11-30 | B9: أعمال مستحقة | C9: مستخلصات | D9: مستخلص توريد جرار نقل مياه عن الفترة من 01/11/2023 و الي 30/11/2023 | E9: مشروع اعمال مجمع الثلاجات البطاطس محطة الفرز و التعبئة /2023 | F9: 1&2023 | G9: جرار نقل مياه | H9: 2023-11-01 | I9: 2023-11-30 | J9: - | K9: يومية | L9: 26 | M9: 923 | N9: =M9*L9 -> 23998 | O9: جاري 3 | Q9: =N9 -> 23998 | R9: =R8+P9-Q9 -> -24071
A10: 2023-12-07 | B10: دفعات بنكية | C10: 72456331 | D10: دفعة للمقاول بشيك بنكي مسحوب على بنك مصر | E10: مشروع اعمال مجمع الثلاجات البطاطس محطة الفرز و التعبئة /2023 | P10: 24000 | R10: -71
A11: 2024-12-31 | B11: أعمال مستحقة | C11: مستخلصات | D11: مستخلص جاري 4 جرار زراعي بمقطورة مياه عن الفترة من 01/12/2023 و الي 31/12/2023 | E11: مشروع اعمال مجمع الثلاجات البطاطس محطة الفرز و التعبئة /2023 | F11: 1&2023 | G11: جرار نقل مياه | H11: 2023-12-01 | I11: 2023-12-31 | J11: - | K11: يومية | L11: 26 | M11: 923 | N11: 24000 | O11: جاري 4 | Q11: =N11 -> 24000 | R11: -24071
A12: 2024-01-09 | B12: دفعات بنكية | C12: 95158746 | D12: دفعة للمقاول بشيك بنكي مسحوب على بنك مصر | E12: مشروع اعمال مجمع الثلاجات البطاطس محطة الفرز و التعبئة /2023 | P12: 24000 | R12: -71
A13: 2024-01-31 | B13: أعمال مستحقة | C13: مستخلصات | D13: مستخلص جاري 5 جرار زراعي بمقطورة مياه عن الفترة من 01-01-2024 و الي 31-01-2024 / عدد 26 يوم + 2يوم اضافى *923 ج | E13: مشروع اعمال مجمع الثلاجات البطاطس محطة الفرز و التعبئة /2023 | F13: 1&2023 | G13: جرار نقل مياه | H13: 2024-01-01 | I13: 2024-01-31 | J13: - | K13: يومية | L13: 28 | M13: 923 | N13: =L13*M13 -> 25844 | O13: جاري 5 | Q13: =N13 -> 25844 | R13: -25915
A14: 2024-02-06 | B14: دفعات بنكية | C14: 95703729 | D14: دفعة للمقاول بشيك بنكي مسحوب على بنك مصر | E14: مشروع اعمال مجمع الثلاجات البطاطس محطة الفرز و التعبئة /2023 | P14: 25917 | R14: 2
A15: 2024-02-29 | B15: أعمال مستحقة | C15: مستخلصات | D15: مستخلص جاري 6 جرار زراعي بمقطورة مياه عن الفترة من 01-02-2024 و الي 29-02-2024 / عدد 26 يوم * 923 ج | E15: مشروع اعمال مجمع الثلاجات البطاطس محطة الفرز و التعبئة /2023 | F15: 1&2023 | G15: جرار نقل مياه | H15: 2024-02-01 | I15: 2024-02-29 | J15: - | K15: يومية | L15: 26 | M15: =N15/L15 -> 923.0769231 | N15: 24000 | O15: جاري 6 | Q15: 24000 | R15: -23998
A16: 2024-03-24 | B16: دفعات بنكية | C16: 96337194 | D16: دفعة للمقاول بشيك بنكي مسحوب على بنك مصر | E16: مشروع اعمال مجمع الثلاجات البطاطس محطة الفرز و التعبئة /2023 | P16: 24000 | R16: 2
A17: 2024-03-31 | B17: أعمال مستحقة | C17: مستخلصات | D17: مستخلص جاري 7 جرار زراعي بمقطورة مياه عن الفترة من 01-03-2024 و الي 31-03-2024 / عدد 26 يوم * 923 ج | E17: مشروع اعمال مجمع الثلاجات البطاطس محطة الفرز و التعبئة /2023 | F17: 1&2023 | G17: جرار نقل مياه | H17: 2024-03-01 | I17: 2024-03-31 | J17: - | K17: يومية | L17: 26 | M17: =N17/L17 -> 923.0769231 | N17: 24000 | O17: جاري 7 | Q17: =N17 -> 24000 | R17: -23998
A18: 2024-04-18 | B18: دفعات بنكية | C18: تحويل | D18: من بنك مصر | E18: مشروع اعمال مجمع الثلاجات البطاطس محطة الفرز و التعبئة /2024 | P18: 24000 | R18: 2
A19: 2024-04-30 | B19: أعمال مستحقة | C19: مستخلصات | D19: مستخلص ج 8 عدد26 يوم من1-4 الى 30-4 | E19: مشروع اعمال مجمع الثلاجات البطاطس محطة الفرز و التعبئة /2025 | O19: جارى 8 | Q19: 24000 | R19: -23998
A20: 2024-05-29 | B20: دفعات بنكية | C20: تحويل | D20: من بنك مصر | E20: مشروع اعمال مجمع الثلاجات البطاطس محطة الفرز و التعبئة /2026 | P20: 24000 | R20: 2
A21: 2024-07-18 | B21: أعمال مستحقة | C21: مستخلصات | D21: مستخلص ج9 عدد25 يوم من1-5 الى 30-5 | E21: مشروع اعمال مجمع الثلاجات البطاطس محطة الفرز و التعبئة /2027 | O21: جارى 9 | Q21: 23077 | R21: -23075
A22: 2024-07-17 | B22: دفعات بنكية | C22: تحويل | D22: من بنك مصر | E22: مشروع اعمال مجمع الثلاجات البطاطس محطة الفرز و التعبئة /2028 | P22: 23075 | R22: 0
A23: 2024-08-15 | B23: أعمال مستحقة | C23: مستخلصات | D23: مستخلص ج10 عدد25 يوم من1-6 الى 30-6 | E23: مشروع اعمال مجمع الثلاجات البطاطس محطة الفرز و التعبئة /2029 | O23: جارى 10 | Q23: 12452 | R23: -12452
A24: 2024-08-15 | B24: أعمال مستحقة | C24: مستخلصات | D24: مستخلص ج11 عدد7 يوم من1-7 الى 30-7 | E24: مشروع اعمال مجمع الثلاجات البطاطس محطة الفرز و التعبئة /2030 | O24: جارى 11 | Q24: 6461.54 | R24: -18913.54

Sheet فرج.كمال.محمود.فرج.هلال
A1: 379 | B1: فرج كمال محمود فرج هلال | D1: ='[1]1'!$D$1 -> 2023 | M1: =SUBTOTAL(9,M4:M45) -> 52000 | N1: =SUBTOTAL(9,N4:N45) -> 52000 | O1: =M1-N1 -> 0
A3: التاريخ | B3: الحركة /رقم القيد | C3: رقم الشيك | D3: البيــان | E3: اسم المشروع | F3: رقم العقد | G3: بند الاعمال | H3: الوحدة | I3: الكمية | J3: السعر | K3: القيمة | L3: رقم المستخلص | M3: مدين | N3: دائن | O3: رصيـد
D4: ='[1]1'!$D$4 -> رصيد 2023/1/1 | M4: ='[1]ارصده المقاولين'!K20 -> 0 | N4: ='[1]ارصده المقاولين'!L20 -> 0 | O4: =M4-N4 -> 0
A5: 2023-09-20 | B5: استحقاق | C5: أعمال مستحقة | D5: مذكرة اضافة أعمال خاصة بتنزيل كرفانات لموقع الثلاجات | E5: مشروع اعمال مجمع الثلاجات البطاطس محطة الفرز و التعبئة /2023 | F5: - | G5: ونش نظير تنزيل كرفانات | H5: يومية | I5: 2 | J5: 5000 | K5: =J5*I5 -> 10000 | L5: مذكرة | N5: =K5 -> 10000 | O5: =O4+M5-N5 -> -10000
A6: 2023-09-20 | B6: دفعات نقدية | C6: 751 | D6: دفعة نقدية من خزينة الشركة | E6: مشروع اعمال مجمع الثلاجات البطاطس محطة الفرز و التعبئة /2023 | F6: - | G6: - | H6: - | I6: - | J6: - | K6: - | L6: - | M6: 10000 | O6: =O5+M6-N6 -> 0
A7: 2023-10-29 | B7: استحقاق | C7: أعمال مستحقة | D7: مذكرة اضافة أعمال خاصة نقل مولدات الكهرباء | E7: مشروع اعمال مجمع الثلاجات البطاطس محطة الفرز و التعبئة /2023 | F7: - | G7: ونش نظير نقل مولدات الكهرباء | H7: يومية | I7: 2 | J7: 5000 | K7: =J7*I7 -> 10000 | L7: مذكرة | N7: =K7 -> 10000 | O7: =O6+M7-N7 -> -10000
A8: 2023-10-29 | B8: دفعات نقدية | C8: 1007 | D8: دفعة نقدية من خزينة الشركة | E8: مشروع اعمال مجمع الثلاجات البطاطس محطة الفرز و التعبئة /2023 | F8: - | G8: - | H8: - | I8: - | J8: - | K8: - | L8: - | M8: 10000 | O8: =O7+M8-N8 -> 0
A9: 2024-01-03 | B9: اضافة | C9: مذكرة | D9: اثبات مذكرة اضافه بمبلغ 22000 وذلك نظير توريد ونش 50 لتنزيل وتعتيق حاويات الخامات الوارده من موقع اللاهون على ان يكون سعر اليوميه 11000 جنيه * 2يوم | E9: مشروع اعمال مجمع الثلاجات البطاطس محطة الفرز و التعبئة /2023 | G9: توريد ونش 50 | H9: يومية | I9: 2 | J9: 11000 | K9: =J9*I9 -> 22000 | L9: مذكرة | N9: =K9 -> 22000 | O9: =O8+M9-N9 -> -22000
A10: 2024-01-03 | B10: خصم | C10: 2004 | D10: اثبات خصم سولار ايصال 2004 بقيمه236 لتر *11 جنيه | E10: مشروع اعمال مجمع الثلاجات البطاطس محطة الفرز و التعبئة /2023 | M10: =11*236 -> 2596 | O10: -19404
A11: 2024-01-03 | B11: اضافة | C11: مذكرة | D11: اثبات مذكرة اضافه بمبلغ 10000 وذلك نظير تنزيل كرفنات بالمنطقه الاداريه والماخذ بالمنطقه التبادليه لقطاع اللاهون عدد 4 كرفانات + عدد بالماخذ | E11: مشروع اعمال مجمع الثلاجات البطاطس محطة الفرز و التعبئة /2023 | G11: تنزيل كرفانات | N11: 10000 | O11: -29404
A12: 2024-01-04 | B12: دفعات بنكيه | C12: 79689718 | D12: دفعه بشيك مسخوب على بنك مصر | E12: مشروع اعمال مجمع الثلاجات البطاطس محطة الفرز و التعبئة /2023 | M12: 29404 | O12: 0

Sheet محمد.سامى.المشد.فيوتشر
A1: ='[1]ارصده المقاولين'!C266 -> 384 | B1: محمد سامى المشد - فيوتشر للاستثمار | D1: 2023 | P1: =SUBTOTAL(9,P4:P75) -> 273240 | Q1: =SUBTOTAL(9,Q4:Q75) -> 273240 | R1: =P1-Q1 -> 0
A3: التاريخ | B3: الحركة /رقم القيد | C3: رقم الشيك | D3: البيــان | E3: اسم المشروع | F3: رقم العقد | G3: بند الاعمال | H3: الوحده | I3: الكميه | J3: السعر | K3: نسبة الانجاز | L3: رقم الكلاستر | M3: رقم الصوبة | N3: قيمة المستخلص | O3: رقم المستخلص | P3: مدين | Q3: دائن | R3: رصيـد
D4: 01.01.2023 | P4: ='[1]ارصده المقاولين'!K159 -> 0 | Q4: ='[1]ارصده المقاولين'!L159 -> 0
A5: 2023-10-26 | B5: خصم سولار | C5: 5469 | D5: صرف 80 لتر * 9ج للمقاول من كشف رقم 77 | E5: مشروع اعمال الثلاجات | P5: =80*9 -> 720 | R5: =R4+P5-Q5 -> 720
A6: 2023-11-30 | B6: خصم | C6: مذكرة خصم | D6: مذكرة خصم معدة لودر 910 ** عد الساعات 6 ساعة ** عن الفترة من 01/11/2023 و الي 30/11/2023 | E6: مشروع اعمال مجمع الثلاجات البطاطس محطة الفرز و التعبئة /2023 | P6: 1622 | R6: =R5+P6-Q6 -> 2342
A7: 2024-01-01 | B7: أعمال مستحقه | C7: مستخلصات | D7: مستخلص جاري 1 ( اعمال تدعيم السقف B3 - سملات فى B2,B3 ) اعمال تدعيم البلاطات الخرسانيه لاسقف المبانى الاداريه | E7: مشروع اعمال مجمع الثلاجات البطاطس محطة الفرز و التعبئة /2023 | F7: 6&2023 | G7: تدعيم البلاط الخرسانى | H7: م2 | I7: 996 | J7: 150 | N7: =I7*J7 -> 149400 | Q7: =N7 -> 149400 | R7: =R6+P7-Q7 -> -147058
A8: 2024-01-01 | B8: أعمال مستحقه | C8: مستخلصات | D8: مستخلص جاري 1 ( اعمال تدعيم السقف B3 - سملات فى B2,B3 ) اعمال توريد وتنفيذ خرسانه مسلحهللميدات ورقاب الاعمده | E8: مشروع اعمال مجمع الثلاجات البطاطس محطة الفرز و التعبئة /2023 | F8: 6&2023 | G8: تدعيم البلاط الخرسانى | H8: م2 | I8: 14.28 | J8: 1000 | N8: =I8*J8 -> 14280 | Q8: =N8 -> 14280 | R8: -161338
A9: 2024-01-01 | B9: أعمال مستحقه | C9: مستخلصات | D9: مستخلص ( اعمال اضافيه للسملات B2,B3 ) اعمال تكسير 64000 ج + ردم ودمك التربه 8000 ج + توريد فوم 1080 ج + توريد اديكريت 600 ج) | E9: مشروع اعمال مجمع الثلاجات البطاطس محطة الفرز و التعبئة /2023 | F9: 6&2023 | Q9: =16*4000+16*500+18*60+1*600 -> 73680 | R9: -235018
A10: 2024-01-01 | B10: اضافه | C10: مذكرة اضافه | D10: مذكرة بنود اضافيه ل B2,B3 خرسانه عاديه للدكة اسفل التبليطات والارصفه | E10: مشروع اعمال مجمع الثلاجات البطاطس محطة الفرز و التعبئة /2023 | F10: 6&2023 | H10: م2 | I10: 99.2 | J10: 60 | N10: =I10*J10 -> 5952 | Q10: =N10 -> 5952 | R10: -240970
A11: 2024-01-01 | B11: اضافه | C11: مذكرة اضافه | D11: مذكرة بنود اضافيه ل B2,B3 توريد وتنفيذ بلاطات خرسانه مسلحه لزوم الارضيات | E11: مشروع اعمال مجمع الثلاجات البطاطس محطة الفرز و التعبئة /2023 | F11: 6&2023 | H11: م2 | I11: 49.6 | J11: 180 | N11: =I11*J11 -> 8928 | Q11: =N11 -> 8928 | R11: -249898
A12: 2024-01-01 | B12: أعمال مستحقه | C12: مستخلصات | D12: مستخلص اعمال اضافيه نظافه B3 ( تخصم على شركة اجرو لايف م/ احمد صادق ) عماله نظافه 15000 ج + ايجار هيلتى 3000ج + ايجار مولد 3000 ج | E12: مشروع اعمال مجمع الثلاجات البطاطس محطة الفرز و التعبئة /2023 | F12: 6&2023 | Q12: =15000+3000+3000 -> 21000 | R12: -270898
A13: 2024-01-01 | B13: خصم | C13: مذكرة خصم | D13: مذكرة اعمال اضافيه تخصم على شركة فيوتشر وتضاف لشركة يثرب ( عماله 3300 ج + حداده 4200 ج + 2هيلتى 300 ج +مولد 450 ج +عربيه 1300 ج ) | E13: مشروع اعمال مجمع الثلاجات البطاطس محطة الفرز و التعبئة /2023 | F13: 6&2023 | P13: =3300+4200+300+450+1300 -> 9550 | R13: -261348
A14: 2024-02-01 | B14: دفعات بنكيه | C14: تحويل | D14: تحويل من بنك مصر | E14: مشروع اعمال مجمع الثلاجات البطاطس محطة الفرز و التعبئة /2023 | P14: 261348 | R14: 0

Sheet وائل.فوزى.يونيفرسال
A1: 385 | B1: وائل فوزي ابراهيم محمد اسماعيل- يونيفرسال | D1: 2023 | P1: =SUBTOTAL(9,P4:P160) -> 30698588 | Q1: =SUBTOTAL(9,Q4:Q160) -> 15127110 | R1: =P1-Q1 -> 15571478
A3: التاريخ | B3: الحركة /رقم القيد | C3: رقم الشيك | D3: البيــان | E3: اسم المشروع | F3: رقم العقد | G3: بند الاعمال | H3: كمية العقد | I3: سعر البند | J3: قيمة العقد | K3: نسبة الانجاز | L3: رقم الكلاستر | M3: رقم الصوبة | N3: قيمة المستخلص | O3: رقم المستخلص | P3: مدين | Q3: دائن | R3: رصيـد
D4: 01.01.2023 | P4: ='[1]ارصده المقاولين'!K159 -> 0 | Q4: ='[1]ارصده المقاولين'!L159 -> 0
A5: 2023-10-01 | B5: دفعات بنكية | D5: تحويل بنكي | E5: مشروع اعمال الثلاجات | P5: 2000000 | R5: =R2-P5+Q5 -> -2000000
A6: 2023-11-13 | B6: دفعات بنكية | D6: تحويل بنكي | E6: مشروع اعمال الثلاجات | P6: 5000000 | R6: =+R5+Q6-P6 -> -7000000
A7: 2023-11-13 | B7: دفعات بنكية | C7: 78873058 | D7: دفعه للمقاول بشيك مسحوبعلى بنك مصر | E7: مشروع اعمال الثلاجات | P7: 1000000 | R7: =+R6+Q7-P7 -> -8000000
A8: 2023-11-13 | B8: دفعات بنكية | C8: 78873059 | D8: دفعه للمقاول بشيك مسحوبعلى بنك مصر | E8: مشروع اعمال الثلاجات | P8: 1000000 | R8: -9000000
A9: 2023-11-13 | B9: دفعات بنكية | C9: 78873060 | D9: دفعه للمقاول بشيك مسحوبعلى بنك مصر | E9: مشروع اعمال الثلاجات | P9: 1000000 | R9: -10000000
A10: 2023-11-13 | B10: دفعات بنكية | C10: 78873061 | D10: دفعه للمقاول بشيك مسحوبعلى بنك مصر | E10: مشروع اعمال الثلاجات | P10: 1000000 | R10: -11000000
A11: 2023-11-13 | B11: دفعات بنكية | C11: 78873062 | D11: دفعه للمقاول بشيك مسحوبعلى بنك مصر | E11: مشروع اعمال الثلاجات | P11: 1000000 | R11: -12000000
A12: 2023-11-13 | B12: دفعات بنكية | C12: 78873063 | D12: دفعه للمقاول بشيك مسحوبعلى بنك مصر | E12: مشروع اعمال الثلاجات | P12: 1000000 | R12: -13000000
A13: 2023-11-13 | B13: دفعات بنكية | C13: 78873064 | D13: دفعه للمقاول بشيك مسحوبعلى بنك مصر | E13: مشروع اعمال الثلاجات | P13: 1000000 | R13: -14000000
A14: 2023-11-13 | B14: دفعات بنكية | C14: 78873065 | D14: دفعه للمقاول بشيك مسحوبعلى بنك مصر | E14: مشروع اعمال الثلاجات | P14: 1000000 | R14: -15000000
A15: 2023-11-30 | B15: خصم | C15: مذكرة خصم | D15: مذكرة خصم معدة لودر 910 ** عد الساعات 39 ساعة **270.31 جنيه عن الفترة من 01/11/2023 و الي 30/11/2023 | E15: مشروع اعمال مجمع الثلاجات البطاطس محطة الفرز و التعبئة /2023 | P15: 10542 | R15: -15010542
A16: 2023-12-31 | B16: خصم | C16: مذكرة خصم | D16: مذكرة خصم معدة لودر 910 ** عد الساعات 40 ساعة **209.82 جنيه عن الفترة من 01/12/2023 و الي 31/12/2023 | E16: مشروع اعمال مجمع الثلاجات البطاطس محطة الفرز و التعبئة /2023 | P16: 8393 | R16: -15018935
A17: 2024-01-10 | B17: دفعات بنكية | C17: 95158739 | D17: دفعه للمقاول بشيك مسحوب على بنك مصر | E17: مشروع اعمال مجمع الثلاجات البطاطس محطة الفرز و التعبئة /2023 | P17: 1000000 | R17: -16018935
A18: 2024-01-10 | B18: دفعات بنكية | C18: 95158740 | D18: دفعه للمقاول بشيك مسحوب على بنك مصر | E18: مشروع اعمال مجمع الثلاجات البطاطس محطة الفرز و التعبئة /2023 | P18: 1000000 | R18: -17018935
A19: 2024-01-10 | B19: دفعات بنكية | C19: 95158735 | D19: دفعه للمقاول بشيك مسحوب على بنك مصر | E19: مشروع اعمال مجمع الثلاجات البطاطس محطة الفرز و التعبئة /2023 | P19: 1000000 | R19: -18018935
A20: 2024-01-10 | B20: دفعات بنكية | C20: 95158737 | D20: دفعه للمقاول بشيك مسحوب على بنك مصر | E20: مشروع اعمال مجمع الثلاجات البطاطس محطة الفرز و التعبئة /2023 | P20: 1000000 | R20: -19018935
A21: 2024-01-10 | B21: دفعات بنكية | C21: 95158738 | D21: دفعه للمقاول بشيك مسحوب على بنك مصر | E21: مشروع اعمال مجمع الثلاجات البطاطس محطة الفرز و التعبئة /2023 | P21: 1000000 | R21: -20018935
A22: 2024-01-11 | B22: دفعات بنكية | C22: 95158736 | D22: دفعه للمقاول بشيك مسحوب على بنك مصر | E22: مشروع اعمال مجمع الثلاجات البطاطس محطة الفرز و التعبئة /2023 | P22: 1000000 | R22: -21018935
A23: 2024-01-31 | B23: خصم | C23: اشعار خصم | D23: اشعار خصم معدة لودر 910 / عد الساعات 31 ساعة * 153.87 ج من 01-01-2024 الي 31-01-2024 ( مرفق مع مستخلص جاري 5 للمقاول محمد سمير ابراهيم ) | E23: مشروع اعمال مجمع الثلاجات البطاطس محطة الفرز و التعبئة /2023 | P23: 4770 | R23: -21023705
A24: 2024-02-01 | B24: دفعات بنكية | C24: تحويل | D24: دفعه للمقاول تحويل على بنك مصر | E24: مشروع اعمال مجمع الثلاجات البطاطس محطة الفرز و التعبئة /2023 | P24: 6000000 | R24: -27023705
A25: 2024-02-29 | B25: خصم | C25: اشعار خصم | D25: اشعار خصم معدة لودر 910 / عد الساعات 31 ساعة * 220.59 ج من 01-02-2024 الي 29-02-2024 ( مرفق مع مستخلص جاري 6 للمقاول محمد سمير ابراهيم ) | E25: مشروع اعمال مجمع الثلاجات البطاطس محطة الفرز و التعبئة /2023 | P25: 6838 | R25: -27030543
A26: 2024-03-30 | B26: مذكرة خصم | C26: خصم | D26: اشعار خصم معدة لودر 910 / عد الساعات 31 ساعة * 220.59 ج من 01-03-2024 الي 29-03-2024 ( مرفق مع مستخلص جاري 7 للمقاول محمد سمير ابراهيم ) | P26: 3545 | R26: -27034088
A27: 2024-05-29 | B27: دفعات بنكية | C27: تحويل | D27: دفعه للمقاول بشيك مسحوب على بنك مصر | P27: 1200000 | R27: -28234088
A28: 2024-06-02 | B28: مستخلص اعمال | C28: مستخلص | D28: مستخلص ج 1 تدعيم b2,b3 | Q28: 15127110 | R28: -13106978
A29: 2024-06-02 | B29: مذكرة خصم | C29: خصم | D29: خصم 3 فواتير توريدات خامات | P29: 214500 | R29: -13321478
P30: 2250000 | R30: -15571478

Sheet محمد.احمد.فاروق
A1: 408 | B1: محمد احمد فاروق السيد | D1: 2023 | P1: =SUBTOTAL(9,P4:P89) -> 106133 | Q1: =SUBTOTAL(9,Q4:Q89) -> 106133 | R1: =P1-Q1 -> 0
A3: التاريخ | B3: الحركة /رقم القيد | C3: رقم الشيك | D3: البيــان | E3: اسم المشروع | F3: رقم العقد | G3: بند الاعمال | H3: كمية العقد | I3: سعر البند | J3: رقم الكلاستر | K3: رقم الصوبة | L3: الكمية | M3: قيمة الوحدة | N3: قيمة المستخلص | O3: رقم المستخلص | P3: مدين | Q3: دائن | R3: رصيـد
D4: 01.01.2023 | P4: ='[1]ارصده المقاولين'!K159 -> 0 | Q4: ='[1]ارصده المقاولين'!L159 -> 0
A5: 2023-10-30 | B5: أعمال مستحقة | D5: استحقاق ايجار سيارات ملاكى عن شهر اكتوبر | E5: مشروع اعمال مجمع الثلاجات البطاطس محطة الفرز و التعبئة /2023 | Q5: 18133 | R5: =R4+P5-Q5 -> -18133
A6: 2023-11-19 | B6: دفعات نقديه | D6: سداد مستحقات المقاول من عهده احمد السيد بهاء الدين | E6: مشروع اعمال مجمع الثلاجات البطاطس محطة الفرز و التعبئة /2024 | P6: 18133 | R6: =R5+P6-Q6 -> 0
A7: 2023-12-07 | B7: دفعات بنكية | C7: تحويل | D7: دفعه للمقاول تحويل من بنك مصر | E7: مشروع اعمال مجمع الثلاجات البطاطس محطة الفرز و التعبئة /2025 | P7: 68000 | R7: 68000
D8: من احمد منصور ( المهندسون ) | E8: مشروع اعمال مجمع الثلاجات البطاطس محطة الفرز و التعبئة /2026 | P8: 10000 | R8: 78000
D9: من الشركة | E9: مشروع اعمال مجمع الثلاجات البطاطس محطة الفرز و التعبئة /2026 | P9: 10000 | R9: 88000
Q10: 88000 | R10: 0
R11: 0
R12: 0
R13: 0
R14: 0
R15: 0
R16: 0
R17: 0
R18: 0
R19: 0
R20: 0
R21: 0
R22: 0
R23: 0
R24: 0
R25: 0
R26: 0
R27: 0
R28: 0

Sheet ستون.احمد.عبد.المنعم
A1: 410 | B1: ستون - احمد عبد المنعم | D1: 2023 | N1: =SUBTOTAL(9,N4:N17) -> 218550 | O1: =SUBTOTAL(9,O4:O17) -> 218550 | P1: =N1-O1 -> 0
A3: التاريخ | B3: الحركة /رقم القيد | C3: رقم الشيك | D3: البيــان | E3: اسم المشروع | F3: رقم العقد | G3: قيمة العقد | H3: بند الاعمال | I3: الوحده | J3: الكميه | K3: السعر | L3: قيمة المستخلص | M3: رقم المستخلص | N3: مدين | O3: دائن | P3: رصيـد
D4: رصيد 2023/1/1 | N4: ='[1]ارصده المقاولين'!K142 -> 0 | O4: ='[1]ارصده المقاولين'!L142 -> 0
A5: 2023-11-30 | B5: خصم | C5: اشعار خصم | D5: اشعار خصم على المقاول / ستون احمد عبد المنعم عدد 1 ساعه توريد لودر 910 * 270 جنيه | E5: مشروع اعمال مجمع الثلاجات البطاطس محطة الفرز و التعبئة /2023 | H5: - | N5: 270 | O5: =L5*85% -> 0 | P5: =P4+N5-O5 -> 270
A6: 2024-01-01 | B6: أعمال مستحقه | C6: مستخلصات | D6: مستخلص جاري 1 ( اعمال التدعيم سقف d2 - كمر التدعيم فى b2,b3 ) اعمال التدعيم البلاطات الخرسانيه لاسقف المبانى الاداريه | E6: مشروع اعمال مجمع الثلاجات البطاطس محطة الفرز و التعبئة /2023 | F6: 9&2023 | H6: اعمال التدعيم | I6: م2 | J6: 996 | K6: 150 | L6: =J6*K6 -> 149400 | O6: =L6 -> 149400 | P6: =P5+N6-O6 -> -149130
A7: 2024-01-01 | B7: أعمال مستحقه | C7: مستخلصات | D7: مستخلص جاري 1 ( اعمال التدعيم سقف d2 - كمر التدعيم فى b2,b3 ) اعمال توريد وتنفيذ خرسانه مسلحه للميدات المستجده ورقاب الاعمده | E7: مشروع اعمال مجمع الثلاجات البطاطس محطة الفرز و التعبئة /2023 | F7: 9&2023 | H7: اعمال التدعيم | I7: م2 | J7: 11.9 | K7: 1000 | L7: =J7*K7 -> 11900 | O7: =L7 -> 11900 | P7: -161030
A8: 2024-01-01 | B8: اضافه | C8: مذكرة اضافه | D8: مذكرة اعمال اضافيه لاعمال الكمرات ( نحاته وتكسير +سقالات خشبيه + معالجه الكمر ) | E8: مشروع اعمال مجمع الثلاجات البطاطس محطة الفرز و التعبئة /2023 | F8: 9&2023 | O8: =12800+5000+5200 -> 23000 | P8: -184030
A9: 2024-01-01 | B9: اضافه | C9: مذكرة اضافه | D9: مذكرة اضافه لاعمال النظافه تخصم من شركة الصرح ( عماله تنظيف + ايجار هيلتى + ايجار مولدات + يوميات عربيه توصيل ) | E9: مشروع اعمال مجمع الثلاجات البطاطس محطة الفرز و التعبئة /2023 | F9: 9&2023 | O9: =85*250+15*300+10*500+700*5 -> 34250 | P9: -218280
A10: 2024-01-01 | B10: خصم | C10: مذكرة خصم | D10: مذكرة خصم على شركة ستون تضاف الى شركة يثرب عن مصاريف B2 ( عماله +نجارين + الهزاز + هليكوبتر +مواد +حداده +5هيلتى +مولد +عربيه نقل ) | E10: مشروع اعمال مجمع الثلاجات البطاطس محطة الفرز و التعبئة /2023 | F10: 9&2023 | N10: =26*300+4*400+1*400+1*10000+6*150+2*850+1*2150+16*300+5*150+2*450+1*1500 -> 32500 | P10: -185780
A11: 2024-02-01 | B11: دفعات بنكيه | C11: 95158641 | D11: تحويل من بنك مصر | E11: مشروع اعمال مجمع الثلاجات البطاطس محطة الفرز و التعبئة /2023 | N11: 185780 | P11: 0

Sheet محمود.لطفى.محمود.عبد.البارى
A1: 416 | B1: محمود لطفي محمود عبد الباري | D1: 2023 | N1: =SUBTOTAL(9,N4:N40) -> 110000 | O1: =SUBTOTAL(9,O4:O40) -> 132000 | P1: =N1-O1 -> -22000
A3: التاريخ | B3: الحركة /رقم القيد | C3: رقم الشيك | D3: البيــان | E3: اسم المشروع | F3: رقم العقد | G3: قيمة العقد | H3: بند الاعمال | I3: الوحده | J3: الكميه | K3: السعر | L3: قيمة المستخلص | M3: رقم المستخلص | N3: مدين | O3: دائن | P3: رصيـد
D4: رصيد 2023/1/1 | N4: ='[1]ارصده المقاولين'!K142 -> 0 | O4: ='[1]ارصده المقاولين'!L142 -> 0
A5: 2023-10-09 | B5: أعمال مستحقة | C5: مستخلصات | D5: مستخلص جاري 1 توريد مولد 60 ك بموقع الثلاجات بالضبعه من تاريخ 10-9-2023 الى 09-10-2023 | E5: استكمال اعمال مجمع ثلاجات البطاطس ومحطات الفرز والتعبئه | F5: 16&2023 | G5: 22000 | H5: ايجار مولد 60 ك | I5: يوميه | J5: 26 | K5: 846.154 | L5: =J5*K5 -> 22000.004 | M5: جاري1 | O5: 22000 | P5: =P4+N5-O5 -> -22000
P6: =P5+N6-O6 -> -22000
A7: 2023-11-09 | B7: أعمال مستحقة | C7: مستخلصات | D7: مستخلص جاري 2 توريد مولد 60 ك بموقع الثلاجات بالضبعه من تاريخ 10-10-2023 الى 09-11-2023 | E7: استكمال اعمال مجمع ثلاجات البطاطس ومحطات الفرز والتعبئه | F7: 16&2023 | G7: 22000 | H7: ايجار مولد 60 ك | I7: يوميه | J7: 26 | K7: 846.154 | L7: =J7*K7 -> 22000.004 | M7: جاري2 | O7: 22000 | P7: -44000
A8: 2023-11-27 | B8: دفعات بنكية | C8: تحويل بنكى | D8: تحويل بنكى من حساب الشركة فة بنك مصر الى المقاول | E8: استكمال اعمال مجمع ثلاجات البطاطس ومحطات الفرز والتعبئه | N8: 22000 | P8: -22000
A9: 2024-01-09 | B9: أعمال مستحقة | C9: مستخلصات | D9: مستخلص جاري 3 توريد مولد 60 ك بموقع الثلاجات بالضبعه من تاريخ 10-11-2023 الى 09-01-2024 ( شهرين ) | E9: استكمال اعمال مجمع ثلاجات البطاطس ومحطات الفرز والتعبئه | F9: 16&2023 | G9: 22000 | H9: ايجار مولد 60 ك | I9: يوميه | J9: 52 | K9: 846.154 | L9: =J9*K9 -> 44000.008 | M9: جاري3 | O9: 44000 | P9: -66000
A10: 2024-02-01 | B10: دفعات بنكية | C10: تحويل بنكى | D10: تحويل بنكى من حساب الشركة فة بنك مصر الى المقاول | E10: استكمال اعمال مجمع ثلاجات البطاطس ومحطات الفرز والتعبئه | N10: 44000 | P10: -22000
A11: 2024-03-09 | B11: أعمال مستحقة | C11: مستخلصات | D11: مستخلص جاري 4 / محمود لطفى عبد الباري / توريد مولد 60 ك بموقع الثلاجات بالضبعه من تاريخ 10-01-2024 الى 09-03-2024 ( شهرين ) | E11: استكمال اعمال مجمع ثلاجات البطاطس ومحطات الفرز والتعبئه | F11: 16&2023 | G11: 22000 | H11: ايجار مولد 60 ك | I11: يوميه | J11: 52 | K11: 846.154 | L11: =J11*K11 -> 44000.008 | M11: جاري4 | O11: 44000 | P11: -66000
A12: 2024-03-25 | B12: دفعات بنكية | C12: تحويل بنكى | D12: تحويل بنكى من حساب الشركة فة بنك مصر الى المقاول | E12: استكمال اعمال مجمع ثلاجات البطاطس ومحطات الفرز والتعبئه | N12: 44000 | P12: -22000
O13: =L13*90% -> 0 | P13: -22000
O14: 0 | P14: -22000
O15: 0 | P15: -22000
O16: 0 | P16: -22000
O17: 0 | P17: -22000
O18: 0 | P18: -22000
O19: 0 | P19: -22000
O20: 0 | P20: -22000
O21: 0 | P21: -22000
O22: 0 | P22: -22000
O23: 0 | P23: -22000
O24: 0 | P24: -22000
O25: 0 | P25: -22000
O26: 0 | P26: -22000
O27: 0 | P27: -22000
O28: 0 | P28: -22000

Sheet مصنع.الفنية.للخراطة.شمندى
A1: 377 | B1: مصنع.الفنية.للخراطة.شمندى | D1: 2023 | K1: عدد اليوميات | L1: =SUBTOTAL(9,L5:L144) -> 0 | M1: قيمة الاعمال | N1: =SUBTOTAL(9,N5:N144) -> 0 | P1: =SUBTOTAL(9,P5:P56) -> 1030000 | Q1: =SUBTOTAL(9,Q5:Q56) -> 637200 | R1: =P1+P4-Q1-Q4 -> 392800
A3: التاريخ | B3: الحركة /رقم القيد | C3: رقم الشيك | D3: البيــان | E3: اسم المشروع | F3: رقم العقد | G3: بند الاعمال | H3: بداية الاعمال | I3: نهاية الاعمال | J3: سعر البند بالعقد | K3: الوحدة | L3: الكمية | M3: السعر | N3: قيمة المستخلص | O3: رقم المستخلص | P3: مدين | Q3: دائن | R3: رصيـد
D4: 2023-01-01 | P4: ='[1]ارصده المقاولين'!K159 -> 0 | Q4: ='[1]ارصده المقاولين'!L159 -> 0
A5: 2024-08-29 | B5: دفعه بنكية | C5: تحويل بنكى | D5: تحويل بنكى | E5: مشروع اعمال مجمع الثلاجات البطاطس محطة الفرز و التعبئة /2023 | J5: - | P5: 400000 | R5: =R4+P5-Q5 -> 400000
A6: 2024-09-11 | B6: دفعه بنكية | C6: تحويل بنكى | D6: تحويل بنكى | E6: مشروع اعمال مجمع الثلاجات البطاطس محطة الفرز و التعبئة /2023 | J6: - | P6: 300000 | R6: =R5+P6-Q6 -> 700000
A7: 2024-10-05 | B7: اعمال مستحقة | C7: مستخلصات | D7: مستخلص جارى 1 | E7: مشروع اعمال مجمع الثلاجات البطاطس محطة الفرز و التعبئة /2023 | G7: توريد وتركيب | J7: - | Q7: 637200 | R7: =R6+P7-Q7 -> 62800
A8: 2024-10-24 | B8: دفعه بنكية | C8: تحويل بنكى | D8: تحويل بنكى | E8: مشروع اعمال مجمع الثلاجات البطاطس محطة الفرز و التعبئة /2023 | J8: - | P8: 330000 | R8: =R7+P8-Q8 -> 392800
E9: مشروع اعمال مجمع الثلاجات البطاطس محطة الفرز و التعبئة /2023 | J9: - | R9: =R8+P9-Q9 -> 392800
E10: مشروع اعمال مجمع الثلاجات البطاطس محطة الفرز و التعبئة /2023 | R10: 392800
E11: مشروع اعمال مجمع الثلاجات البطاطس محطة الفرز و التعبئة /2023 | J11: - | R11: 392800
E12: مشروع اعمال مجمع الثلاجات البطاطس محطة الفرز و التعبئة /2023 | R12: 392800
E13: مشروع اعمال مجمع الثلاجات البطاطس محطة الفرز و التعبئة /2023 | J13: - | R13: 392800
R14: 392800
J15: - | R15: 392800
R16: 392800
J17: - | R17: 392800

Sheet بيومى.أنور.بيومى.فرج
A1: 377 | B1: بيومى.أنور.بيومى.فرج | D1: 2023 | K1: عدد اليوميات | L1: =SUBTOTAL(9,L5:L144) -> 0 | M1: قيمة الاعمال | N1: =SUBTOTAL(9,N5:N144) -> 0 | P1: =SUBTOTAL(9,P5:P56) -> 778000 | Q1: =SUBTOTAL(9,Q5:Q56) -> 749194.3 | R1: =P1+P4-Q1-Q4 -> 28805.7
A3: التاريخ | B3: الحركة /رقم القيد | C3: رقم الشيك | D3: البيــان | E3: اسم المشروع | F3: رقم العقد | G3: بند الاعمال | H3: بداية الاعمال | I3: نهاية الاعمال | J3: سعر البند بالعقد | K3: الوحدة | L3: الكمية | M3: السعر | N3: قيمة المستخلص | O3: رقم المستخلص | P3: مدين | Q3: دائن | R3: رصيـد
D4: 2023-01-01 | P4: ='[1]ارصده المقاولين'!K159 -> 0 | Q4: ='[1]ارصده المقاولين'!L159 -> 0
A5: 2024-08-20 | B5: دفعه بنكية | C5: تحويل | D5: من بنك مصر | J5: - | P5: 40000 | R5: =R4+P5-Q5 -> 40000
A6: 2024-08-29 | B6: دفعه بنكية | C6: تحويل | D6: من بنك مصر | J6: - | P6: 35000 | R6: =R5+P6-Q6 -> 75000
A7: 2024-09-11 | B7: دفعه بنكية | C7: تحويل | D7: من بنك مصر | J7: - | P7: 25000 | R7: =R6+P7-Q7 -> 100000
A8: 2024-09-22 | B8: اعمال مستحقة | C8: مستخلص | D8: مستخلص ج 1 اعمال سباكة داخلية | J8: - | Q8: 92932.5 | R8: =R7+P8-Q8 -> 7067.5
A9: 2024-09-22 | B9: اعمال مستحقة | C9: مستخلص | D9: مستخلص ج 2 اعمال سباكة داخلية غرف المطر والتفتيش والتسريب 50% | J9: - | Q9: 6250 | R9: =R8+P9-Q9 -> 817.5
A10: 2024-09-22 | B10: اعمال مستحقة | C10: مستخلص | D10: مستخلص ج 1 اعمال سباكة خارجية والموقع العام | Q10: 650011.8 | R10: -649194.3
A11: 2024-09-22 | B11: خصم | C11: مذكرة خصم | D11: دفعات من شركة يثرب مصطفى الشاذلى | J11: - | P11: 651000 | R11: 1805.7
A12: 2024-09-26 | B12: دفعه بنكية | C12: تحويل | D12: من بنك مصر | P12: 25000 | R12: 26805.7
J13: - | O13: انتظار تسوية | P13: 2000 | R13: 28805.7
R14: 28805.7
J15: - | R15: 28805.7
R16: 28805.7
J17: - | R17: 28805.7

Sheet شركة.جيسكو.للتاريض
A1: 377 | B1: شركة.جيسكو.للتاريض | D1: 2023 | K1: عدد اليوميات | L1: =SUBTOTAL(9,L5:L144) -> 0 | M1: قيمة الاعمال | N1: =SUBTOTAL(9,N5:N144) -> 0 | P1: =SUBTOTAL(9,P5:P56) -> 1588595 | Q1: =SUBTOTAL(9,Q5:Q56) -> 1748850 | R1: =P1+P4-Q1-Q4 -> -160255
A3: التاريخ | B3: الحركة /رقم القيد | C3: رقم الشيك | D3: البيــان | E3: اسم المشروع | F3: رقم العقد | G3: بند الاعمال | H3: بداية الاعمال | I3: نهاية الاعمال | J3: سعر البند بالعقد | K3: الوحدة | L3: الكمية | M3: السعر | N3: قيمة المستخلص | O3: رقم المستخلص | P3: مدين | Q3: دائن | R3: رصيـد
D4: 2023-01-01 | P4: ='[1]ارصده المقاولين'!K159 -> 0 | Q4: ='[1]ارصده المقاولين'!L159 -> 0
A5: 2024-05-20 | B5: تحويل من احمد منصور | C5: مذكرة | D5: اجمالى ماتم دفعه عن طريق المهندسون المتحدون | J5: - | P5: 1238595 | R5: =R4+P5-Q5 -> 1238595
A6: 2024-05-21 | B6: دفعات بنكية | C6: من بنك مصر | D6: من بنك مصر | J6: - | P6: 100000 | R6: =R5+P6-Q6 -> 1338595
A7: 2024-05-29 | B7: دفعات بنكية | C7: من بنك مصر | D7: من بنك مصر | J7: - | P7: 200000 | R7: =R6+P7-Q7 -> 1538595
A8: 2024-09-11 | B8: اعمال | D8: مستخلص ج 1 منظومة التاريض للمحول والمولد ومانع الصواعق | J8: - | Q8: 1748850 | R8: =R7+P8-Q8 -> -210255
A9: 2024-09-11 | B9: دفعات بنكية | C9: من بنك مصر | D9: من بنك مصر | J9: - | P9: 50000 | R9: =R8+P9-Q9 -> -160255
R10: -160255
J11: - | R11: -160255
R12: -160255
J13: - | R13: -160255
R14: -160255
J15: - | R15: -160255
R16: -160255
J17: - | R17: -160255

Sheet حسين.محسن.احمد
A1: 377 | B1: حسين.محسن.احمد | D1: 2023 | K1: عدد اليوميات | L1: =SUBTOTAL(9,L5:L144) -> 0 | M1: قيمة الاعمال | N1: =SUBTOTAL(9,N5:N144) -> 0 | P1: =SUBTOTAL(9,P5:P56) -> 989930 | Q1: =SUBTOTAL(9,Q5:Q56) -> 990920 | R1: =P1+P4-Q1-Q4 -> -990
A3: التاريخ | B3: الحركة /رقم القيد | C3: رقم الشيك | D3: البيــان | E3: اسم المشروع | F3: رقم العقد | G3: بند الاعمال | H3: بداية الاعمال | I3: نهاية الاعمال | J3: سعر البند بالعقد | K3: الوحدة | L3: الكمية | M3: السعر | N3: قيمة المستخلص | O3: رقم المستخلص | P3: مدين | Q3: دائن | R3: رصيـد
D4: 2023-01-01 | P4: ='[1]ارصده المقاولين'!K159 -> 0 | Q4: ='[1]ارصده المقاولين'!L159 -> 0
A5: 2024-04-24 | B5: إضافة اعمال | D5: اعمال إضافية بالموقع العام للافتتاح الرئاسي | E5: مشروع اعمال مجمع الثلاجات البطاطس محطة الفرز و التعبئة /2023 | J5: - | Q5: 370000 | R5: =R4+P5-Q5 -> -370000
A6: 2024-04-24 | B6: دفعات بنكية | C6: تحويل | D6: بنكى | E6: مشروع اعمال مجمع الثلاجات البطاطس محطة الفرز و التعبئة /2023 | J6: - | P6: 200000 | R6: =R5+P6-Q6 -> -170000
A7: 2024-04-30 | B7: دفعات بنكية | C7: تحويل | D7: بنكى | E7: مشروع اعمال مجمع الثلاجات البطاطس محطة الفرز و التعبئة /2023 | J7: - | P7: 100000 | R7: =R6+P7-Q7 -> -70000
A8: 2024-05-02 | B8: دفعات بنكية | C8: تحويل | D8: بنكى | E8: مشروع اعمال مجمع الثلاجات البطاطس محطة الفرز و التعبئة /2023 | J8: - | P8: 70000 | R8: =R7+P8-Q8 -> 0
A9: 2024-05-16 | B9: دفعات بنكية | C9: تحويل | D9: بنكى | E9: مشروع اعمال مجمع الثلاجات البطاطس محطة الفرز و التعبئة /2024 | J9: - | P9: 50000 | R9: =R8+P9-Q9 -> 50000
A10: 2024-05-07 | B10: اعمال مستحقة | C10: مستخلصات | D10: مستخلص ختامى توريدات عمالة | E10: مشروع اعمال مجمع الثلاجات البطاطس محطة الفرز و التعبئة /2025 | F10: 16&2024 | Q10: 620920 | R10: -570920
A11: 2024-06-01 | B11: دفعات بنكية | C11: تحويل | D11: بنكى | E11: مشروع اعمال مجمع الثلاجات البطاطس محطة الفرز و التعبئة /2026 | J11: - | P11: 150000 | R11: -420920
A12: 2024-06-22 | B12: دفعات بنكية | C12: تحويل | D12: بنكى | E12: مشروع اعمال مجمع الثلاجات البطاطس محطة الفرز و التعبئة /2027 | P12: 50000 | R12: -370920
A13: 2024-07-17 | B13: دفعات بنكية | C13: تحويل | D13: بنكى | E13: مشروع اعمال مجمع الثلاجات البطاطس محطة الفرز و التعبئة /2028 | J13: - | P13: 100000 | R13: -270920
A14: 2024-09-03 | B14: دفعات بنكية | C14: تحويل | D14: من م /رمضان | E14: مشروع اعمال مجمع الثلاجات البطاطس محطة الفرز و التعبئة /2029 | P14: 70000 | R14: -200920
A15: 2024-09-12 | B15: خصم | D15: خصم على المورد على السائق عماد حمدى | E15: مشروع اعمال مجمع الثلاجات البطاطس محطة الفرز و التعبئة /2030 | J15: - | O15: خصم | P15: 2930 | R15: -197990
A16: 2024-09-11 | B16: دفعات بنكية | C16: تحويل | D16: من م /رمضان | E16: مشروع اعمال مجمع الثلاجات البطاطس محطة الفرز و التعبئة /2031 | P16: 100000 | R16: -97990
A17: 2024-09-26 | B17: دفعات بنكية | C17: تحويل | D17: بنك مصر | E17: مشروع اعمال مجمع الثلاجات البطاطس محطة الفرز و التعبئة /2032 | J17: - | P17: 97000 | R17: -990

Sheet خالد.فريد.محمد
A1: 377 | B1: خالد.فريد.محمد | D1: 2023 | K1: عدد اليوميات | L1: =SUBTOTAL(9,L5:L144) -> 0 | M1: قيمة الاعمال | N1: =SUBTOTAL(9,N5:N144) -> 0 | P1: =SUBTOTAL(9,P5:P56) -> 180000 | Q1: =SUBTOTAL(9,Q5:Q56) -> 0 | R1: =P1+P4-Q1-Q4 -> 180000
A3: التاريخ | B3: الحركة /رقم القيد | C3: رقم الشيك | D3: البيــان | E3: اسم المشروع | F3: رقم العقد | G3: بند الاعمال | H3: بداية الاعمال | I3: نهاية الاعمال | J3: سعر البند بالعقد | K3: الوحدة | L3: الكمية | M3: السعر | N3: قيمة المستخلص | O3: رقم المستخلص | P3: مدين | Q3: دائن | R3: رصيـد
D4: 2023-01-01 | P4: ='[1]ارصده المقاولين'!K159 -> 0 | Q4: ='[1]ارصده المقاولين'!L159 -> 0
A5: 2024-08-29 | B5: دفعات بنكية | C5: تحويل | D5: من بنك مصر | E5: مشروع اعمال مجمع الثلاجات البطاطس محطة الفرز و التعبئة /2023 | J5: - | P5: 30000 | R5: =R4+P5-Q5 -> 30000
A6: 2024-09-11 | B6: دفعات بنكية | C6: تحويل | D6: من بنك مصر | E6: مشروع اعمال مجمع الثلاجات البطاطس محطة الفرز و التعبئة /2023 | J6: - | P6: 150000 | R6: =R5+P6-Q6 -> 180000
E7: مشروع اعمال مجمع الثلاجات البطاطس محطة الفرز و التعبئة /2023 | J7: - | R7: =R6+P7-Q7 -> 180000
E8: مشروع اعمال مجمع الثلاجات البطاطس محطة الفرز و التعبئة /2023 | J8: - | R8: =R7+P8-Q8 -> 180000
J9: - | R9: =R8+P9-Q9 -> 180000
R10: 180000
J11: - | R11: 180000
R12: 180000
J13: - | R13: 180000
R14: 180000
J15: - | R15: 180000
R16: 180000
J17: - | R17: 180000

Sheet خليفه.فرغلى.عبدالحميد
A1: 377 | B1: خليفه.فرغلى.عبدالحميد | D1: 2023 | K1: عدد اليوميات | L1: =SUBTOTAL(9,L5:L144) -> 0 | M1: قيمة الاعمال | N1: =SUBTOTAL(9,N5:N144) -> 0 | P1: =SUBTOTAL(9,P5:P56) -> 1099200 | Q1: =SUBTOTAL(9,Q5:Q56) -> 1114795.9 | R1: =P1+P4-Q1-Q4 -> -15595.9
A3: التاريخ | B3: الحركة /رقم القيد | C3: رقم الشيك | D3: البيــان | E3: اسم المشروع | F3: رقم العقد | G3: بند الاعمال | H3: بداية الاعمال | I3: نهاية الاعمال | J3: سعر البند بالعقد | K3: الوحدة | L3: الكمية | M3: السعر | N3: قيمة المستخلص | O3: رقم المستخلص | P3: مدين | Q3: دائن | R3: رصيـد
D4: 2023-01-01 | P4: ='[1]ارصده المقاولين'!K159 -> 0 | Q4: ='[1]ارصده المقاولين'!L159 -> 0
A5: 2024-08-20 | B5: دفعات بنكية | C5: تحويل | D5: من بنك مصر | E5: مشروع اعمال مجمع الثلاجات البطاطس محطة الفرز و التعبئة /2023 | J5: - | P5: 20000 | R5: =R4+P5-Q5 -> 20000
A6: 2024-08-29 | B6: دفعات بنكية | C6: تحويل | D6: من بنك مصر | E6: مشروع اعمال مجمع الثلاجات البطاطس محطة الفرز و التعبئة /2023 | J6: - | P6: 20000 | R6: =R5+P6-Q6 -> 40000
A7: 2024-09-11 | B7: دفعات بنكية | C7: تحويل | D7: من بنك مصر | E7: مشروع اعمال مجمع الثلاجات البطاطس محطة الفرز و التعبئة /2023 | J7: - | P7: 25000 | R7: =R6+P7-Q7 -> 65000
A8: 2024-09-22 | B8: اعمال مستحقة | C8: مستخلص | D8: جارى 1 و2 اعمال سافيتو وبياض | E8: مشروع اعمال مجمع الثلاجات البطاطس محطة الفرز و التعبئة /2023 | J8: - | Q8: 1056814 | R8: =R7+P8-Q8 -> -991814
A9: 2024-09-22 | B9: مذكرة خصم | C9: خصم | D9: دفعات استلمها من شركة يثرب | E9: مشروع اعمال مجمع الثلاجات البطاطس محطة الفرز و التعبئة /2024 | J9: - | P9: 988600 | R9: =R8+P9-Q9 -> -3214
A10: 2024-09-26 | B10: دفعات بنكية | C10: تحويل | D10: من بنك مصر | E10: مشروع اعمال مجمع الثلاجات البطاطس محطة الفرز و التعبئة /2025 | P10: 25000 | R10: 21786
A11: 2024-09-30 | B11: اعمال مستحقة | C11: مستخلص | D11: مستخلص ج 3 عمالة خارجية مرمات | E11: مشروع اعمال مجمع الثلاجات البطاطس محطة الفرز و التعبئة /2026 | J11: - | Q11: 2100 | R11: 19686
A12: 2024-09-30 | B12: اعمال مستحقة | C12: مستخلص | D12: مستخلص ج 3 اعمال سافيتو بتاريخ 21-9 | E12: مشروع اعمال مجمع الثلاجات البطاطس محطة الفرز و التعبئة /2027 | Q12: 10334.84 | R12: 9351.16
A13: 2024-09-30 | B13: اعمال مستحقة | C13: مستخلص | D13: مستخلص ج 3 اعمال سافيتو بتاريخ 21-9 | E13: مشروع اعمال مجمع الثلاجات البطاطس محطة الفرز و التعبئة /2028 | J13: - | Q13: 2657.06 | R13: 6694.1
A14: 2024-10-08 | B14: اعمال مستحقة | C14: مستخلص | D14: مستخلص ج 4 عمالة خارجية مرمات | E14: مشروع اعمال مجمع الثلاجات البطاطس محطة الفرز و التعبئة /2029 | Q14: 1400 | R14: 5294.1
A15: 2024-10-08 | B15: اعمال مستحقة | C15: مستخلص | D15: مستخلص ج 4 اعمال سافيتو بتاريخ8-10 | E15: مشروع اعمال مجمع الثلاجات البطاطس محطة الفرز و التعبئة /2030 | J15: - | Q15: 3491.25 | R15: 1802.85
A16: 2024-10-08 | B16: اعمال مستحقة | C16: مستخلص | D16: مستخلص ج 4 اعمال سافيتو بتاريخ8-10 | E16: مشروع اعمال مجمع الثلاجات البطاطس محطة الفرز و التعبئة /2031 | Q16: 16010.75 | R16: -14207.9
A17: 2024-10-08 | B17: اعمال مستحقة | C17: مستخلص | D17: مستخلص ج 4 اعمال سافيتو بتاريخ8-10 | E17: مشروع اعمال مجمع الثلاجات البطاطس محطة الفرز و التعبئة /2032 | J17: - | Q17: 6441 | R17: -20648.9
A18: 2024-10-24 | B18: دفعات بنكية | C18: تحويل | D18: من بنك مصر | E18: مشروع اعمال مجمع الثلاجات البطاطس محطة الفرز و التعبئة /2033 | P18: 20600 | R18: -48.9
A19: 2024-11-09 | B19: اعمال مستحقة | C19: مستخلص | D19: مستخلص ج 45 اعمال سافيتو بتاريخ11-9 | E19: مشروع اعمال مجمع الثلاجات البطاطس محطة الفرز و التعبئة /2034 | Q19: =14217+1330 -> 15547 | R19: -15595.9

Sheet سيد.احمد.ذكى
A1: 377 | B1: سيد.احمد.ذكى | D1: 2023 | K1: عدد اليوميات | L1: =SUBTOTAL(9,L5:L144) -> 0 | M1: قيمة الاعمال | N1: =SUBTOTAL(9,N5:N144) -> 0 | P1: =SUBTOTAL(9,P5:P56) -> 83700 | Q1: =SUBTOTAL(9,Q5:Q56) -> 83742.5 | R1: =P1+P4-Q1-Q4 -> -42.5
A3: التاريخ | B3: الحركة /رقم القيد | C3: رقم الشيك | D3: البيــان | E3: اسم المشروع | F3: رقم العقد | G3: بند الاعمال | H3: بداية الاعمال | I3: نهاية الاعمال | J3: سعر البند بالعقد | K3: الوحدة | L3: الكمية | M3: السعر | N3: قيمة المستخلص | O3: رقم المستخلص | P3: مدين | Q3: دائن | R3: رصيـد
D4: 2023-01-01 | P4: ='[1]ارصده المقاولين'!K159 -> 0 | Q4: ='[1]ارصده المقاولين'!L159 -> 0
A5: 2024-10-13 | B5: اعمال مستحقة | C5: مستخلص | D5: جارى1 توريد وتركيب اعمال بلاط سنجابى 1763 متر*50ج 13-10-2024 | E5: مشروع اعمال مجمع الثلاجات البطاطس محطة الفرز و التعبئة /2023 | J5: - | Q5: 83742.5 | R5: =R4+P5-Q5 -> -83742.5
A6: 2024-08-20 | B6: دفعات | C6: من يثرب | D6: دفعات من شركة يثرب | E6: مشروع اعمال مجمع الثلاجات البطاطس محطة الفرز و التعبئة /2023 | J6: - | P6: 62000 | R6: =R5+P6-Q6 -> -21742.5
A7: 2024-10-24 | B7: دفعات بنكية | C7: تحويل | D7: من بنك مصر | E7: مشروع اعمال مجمع الثلاجات البطاطس محطة الفرز و التعبئة /2023 | J7: - | P7: 21700 | R7: =R6+P7-Q7 -> -42.5
E8: مشروع اعمال مجمع الثلاجات البطاطس محطة الفرز و التعبئة /2023 | J8: - | R8: =R7+P8-Q8 -> -42.5
J9: - | R9: =R8+P9-Q9 -> -42.5
R10: -42.5
J11: - | R11: -42.5
R12: -42.5
J13: - | R13: -42.5
R14: -42.5
J15: - | R15: -42.5
R16: -42.5
J17: - | R17: -42.5

Sheet شركة.الاتحاد.شريف.معوض
A1: 377 | B1: شركة.الاتحاد.شريف.معوض | D1: 2023 | K1: عدد اليوميات | L1: =SUBTOTAL(9,L5:L144) -> 59521.22 | M1: قيمة الاعمال | N1: =SUBTOTAL(9,N5:N144) -> 1411246.35 | P1: =SUBTOTAL(9,P5:P56) -> 179950 | Q1: =SUBTOTAL(9,Q5:Q56) -> 1470552.35 | R1: =P1+P4-Q1-Q4 -> -1290602.35
A3: التاريخ | B3: الحركة /رقم القيد | C3: رقم الشيك | D3: البيــان | E3: اسم المشروع | F3: رقم العقد | G3: بند الاعمال | H3: بداية الاعمال | I3: نهاية الاعمال | J3: سعر البند بالعقد | K3: الوحدة | L3: الكمية | M3: السعر | N3: قيمة المستخلص | O3: رقم المستخلص | P3: مدين | Q3: دائن | R3: رصيـد
D4: 2023-01-01 | P4: ='[1]ارصده المقاولين'!K159 -> 0 | Q4: ='[1]ارصده المقاولين'!L159 -> 0
A5: 2024-08-29 | B5: دفعات بنكية | C5: تحويل | D5: من بنك مصر | E5: مشروع اعمال مجمع الثلاجات البطاطس محطة الفرز و التعبئة /2023 | J5: - | P5: 50000 | R5: =R4+P5-Q5 -> 50000
A6: 2024-09-11 | B6: دفعات بنكية | C6: تحويل | D6: من بنك مصر | E6: مشروع اعمال مجمع الثلاجات البطاطس محطة الفرز و التعبئة /2023 | J6: - | P6: 100000 | R6: =R5+P6-Q6 -> 150000
A7: 2024-11-02 | B7: مستخلص | C7: مستخلص | D7: جارى 1 اعمال طرق والانترلوك والبلدورة | E7: مشروع اعمال مجمع الثلاجات البطاطس محطة الفرز و التعبئة /2023 | J7: - | L7: 5378.22 | M7: 20 | N7: =+L7*M7*90/100 -> 96807.96 | Q7: =+N7 -> 96807.96 | R7: =R6+P7-Q7 -> 53192.04
A8: 2024-11-02 | B8: مستخلص | C8: مستخلص | D8: جارى 1 اعمال طرق والانترلوك والبلدورة | E8: مشروع اعمال مجمع الثلاجات البطاطس محطة الفرز و التعبئة /2023 | J8: - | L8: 5456.14 | M8: 15 | N8: =+L8*M8*90/100 -> 73657.89 | Q8: =+N8 -> 73657.89 | R8: =R7+P8-Q8 -> -20465.85
A9: 2024-11-02 | B9: مستخلص | C9: مستخلص | D9: جارى 1 اعمال طرق والانترلوك والبلدورة | E9: مشروع اعمال مجمع الثلاجات البطاطس محطة الفرز و التعبئة /2024 | J9: - | L9: 25261 | M9: 25 | N9: 568372.5 | Q9: 568372.5 | R9: =R8+P9-Q9 -> -588838.35
A10: 2024-11-02 | B10: مستخلص | C10: مستخلص | D10: جارى 1 اعمال طرق والانترلوك والبلدورة | E10: مشروع اعمال مجمع الثلاجات البطاطس محطة الفرز و التعبئة /2025 | L10: 25265 | M10: 25 | N10: 568462.5 | Q10: 568462.5 | R10: -1157300.85
A11: 2024-11-02 | B11: مستخلص | C11: مستخلص | D11: جارى 1 اعمال طرق والانترلوك والبلدورة | E11: مشروع اعمال مجمع الثلاجات البطاطس محطة الفرز و التعبئة /2026 | J11: - | L11: 1397 | M11: 35 | N11: 44005.5 | Q11: 44005.5 | R11: -1201306.35
A12: 2024-11-02 | B12: مستخلص | C12: مستخلص | D12: جارى 1 اعمال طرق والانترلوك والبلدورة | E12: مشروع اعمال مجمع الثلاجات البطاطس محطة الفرز و التعبئة /2027 | L12: 2220 | M12: 30 | N12: 59940 | Q12: 59940 | R12: -1261246.35
A13: 2024-11-02 | B13: خصم | C13: مذكرة | D13: خصم بمذكرة | J13: - | P13: =4800+14350+10800 -> 29950 | R13: -1231296.35
A14: 2024-11-02 | B14: اعمال إضافية | C14: مذكرة اعمال إضافية | D14: اعمال إضافية | Q14: =12400+28866+15640+2400 -> 59306 | R14: -1290602.35
J15: - | R15: -1290602.35
R16: -1290602.35
J17: - | R17: -1290602.35

Sheet شركة.الصفا.سيزر.مان.لفت
A1: 377 | B1: شركة.الصفا.سيزر.مان.لفت | D1: 2023 | K1: عدد اليوميات | L1: =SUBTOTAL(9,L5:L144) -> 0 | M1: قيمة الاعمال | N1: =SUBTOTAL(9,N5:N144) -> 0 | P1: =SUBTOTAL(9,P5:P56) -> 0 | Q1: =SUBTOTAL(9,Q5:Q56) -> 70842.99 | R1: =P1+P4-Q1-Q4 -> -70842.99
A3: التاريخ | B3: الحركة /رقم القيد | C3: رقم الشيك | D3: البيــان | E3: اسم المشروع | F3: رقم العقد | G3: بند الاعمال | H3: بداية الاعمال | I3: نهاية الاعمال | J3: سعر البند بالعقد | K3: الوحدة | L3: الكمية | M3: السعر | N3: قيمة المستخلص | O3: رقم المستخلص | P3: مدين | Q3: دائن | R3: رصيـد
D4: 2023-01-01 | P4: ='[1]ارصده المقاولين'!K159 -> 0 | Q4: ='[1]ارصده المقاولين'!L159 -> 0
A5: 2024-10-22 | B5: اعمال مشتحقة | C5: مذكرة اعمال | D5: ايجار مان لفت 274.5 س*200من25-9 الى 22-10 | E5: مشروع اعمال مجمع الثلاجات البطاطس محطة الفرز و التعبئة /2023 | J5: - | Q5: =274.5*200 -> 54900 | R5: =R4+P5-Q5 -> -54900
A6: 2024-10-22 | B6: اعمال مشتحقة | C6: مذكرة اعمال | D6: ايجار سيزر 274.5 س*171.43من25-9 الى 22-11 | E6: مشروع اعمال مجمع الثلاجات البطاطس محطة الفرز و التعبئة /2023 | J6: - | Q6: =93*171.43 -> 15942.99 | R6: =R5+P6-Q6 -> -70842.99
J7: - | R7: =R6+P7-Q7 -> -70842.99
J8: - | R8: =R7+P8-Q8 -> -70842.99
J9: - | R9: =R8+P9-Q9 -> -70842.99
R10: -70842.99
J11: - | R11: -70842.99
R12: -70842.99
J13: - | R13: -70842.99
R14: -70842.99
J15: - | R15: -70842.99
R16: -70842.99
J17: - | R17: -70842.99

Sheet صبحى.السيد.عبد.العزيز.بيومى
A1: 377 | B1: صبحى.السيد.عبد.العزيز.بيومى | D1: 2023 | K1: عدد اليوميات | L1: =SUBTOTAL(9,L5:L144) -> 0 | M1: قيمة الاعمال | N1: =SUBTOTAL(9,N5:N144) -> 0 | P1: =SUBTOTAL(9,P5:P56) -> 23733 | Q1: =SUBTOTAL(9,Q5:Q56) -> 23773.4 | R1: =P1+P4-Q1-Q4 -> -40.4
A3: التاريخ | B3: الحركة /رقم القيد | C3: رقم الشيك | D3: البيــان | E3: اسم المشروع | F3: رقم العقد | G3: بند الاعمال | H3: بداية الاعمال | I3: نهاية الاعمال | J3: سعر البند بالعقد | K3: الوحدة | L3: الكمية | M3: السعر | N3: قيمة المستخلص | O3: رقم المستخلص | P3: مدين | Q3: دائن | R3: رصيـد
D4: 2023-01-01 | P4: ='[1]ارصده المقاولين'!K159 -> 0 | Q4: ='[1]ارصده المقاولين'!L159 -> 0
A5: 2024-09-22 | B5: اعمال مستحقة | C5: مستخلص | D5: بناء 33.962 متر *700ج طوب اسمنتى b1 | E5: مشروع اعمال مجمع الثلاجات البطاطس محطة الفرز و التعبئة /2023 | J5: - | Q5: 23773.4 | R5: =R4+P5-Q5 -> -23773.4
A6: 2024-08-31 | B6: دفعه نقدية | C6: 505 | D6: دفعه كشف60 | E6: مشروع اعمال مجمع الثلاجات البطاطس محطة الفرز و التعبئة /2023 | J6: - | P6: 10000 | R6: =R5+P6-Q6 -> -13773.4
A7: 2024-09-04 | B7: دفعه نقدية | C7: 518 | D7: دفعه كشف62 | E7: مشروع اعمال مجمع الثلاجات البطاطس محطة الفرز و التعبئة /2023 | J7: - | P7: 4000 | R7: =R6+P7-Q7 -> -9773.4
A8: 2024-09-24 | B8: دفعه نقدية | C8: 1370 | D8: دفعه كشف65 | E8: مشروع اعمال مجمع الثلاجات البطاطس محطة الفرز و التعبئة /2023 | J8: - | P8: 9733 | R8: =R7+P8-Q8 -> -40.4
J9: - | R9: =R8+P9-Q9 -> -40.4
R10: -40.4
J11: - | R11: -40.4
R12: -40.4
J13: - | R13: -40.4
R14: -40.4
J15: - | R15: -40.4
R16: -40.4
J17: - | R17: -40.4

Sheet شوقى.سيد.عبده
A1: 377 | B1: شوقى.سيد.عبده | D1: 2023 | K1: عدد اليوميات | L1: =SUBTOTAL(9,L5:L144) -> 0 | M1: قيمة الاعمال | N1: =SUBTOTAL(9,N5:N144) -> 0 | P1: =SUBTOTAL(9,P5:P56) -> 473824 | Q1: =SUBTOTAL(9,Q5:Q56) -> 306364 | R1: =P1+P4-Q1-Q4 -> 167460
A3: التاريخ | B3: الحركة /رقم القيد | C3: رقم الشيك | D3: البيــان | E3: اسم المشروع | F3: رقم العقد | G3: بند الاعمال | H3: بداية الاعمال | I3: نهاية الاعمال | J3: سعر البند بالعقد | K3: الوحدة | L3: الكمية | M3: السعر | N3: قيمة المستخلص | O3: رقم المستخلص | P3: مدين | Q3: دائن | R3: رصيـد
D4: 2023-01-01 | P4: ='[1]ارصده المقاولين'!K159 -> 0 | Q4: ='[1]ارصده المقاولين'!L159 -> 0
A5: 2024-01-31 | B5: مستخلصات | E5: مشروع اعمال مجمع الثلاجات البطاطس محطة الفرز و التعبئة /2023 | J5: - | O5: جارى 1 | Q5: 16800 | R5: =0+Q5-P5 -> 16800
A6: 2024-01-31 | B6: مستخلصات | E6: مشروع اعمال مجمع الثلاجات البطاطس محطة الفرز و التعبئة /2023 | J6: - | O6: جارى 1 | Q6: 14400 | R6: =+R5+Q6-P6 -> 31200
A7: 2024-03-02 | B7: مستخلصات | E7: مشروع اعمال مجمع الثلاجات البطاطس محطة الفرز و التعبئة /2023 | J7: - | O7: جارى 1 | Q7: 192000 | R7: =+R6+Q7-P7 -> 223200
A8: 2024-03-02 | B8: مستخلصات | E8: مشروع اعمال مجمع الثلاجات البطاطس محطة الفرز و التعبئة /2023 | J8: - | O8: جارى 2 | Q8: 12320 | R8: 235520
A9: 2024-03-02 | B9: مستخلصات | E9: مشروع اعمال مجمع الثلاجات البطاطس محطة الفرز و التعبئة /2023 | J9: - | O9: جارى 2 | Q9: 12320 | R9: 247840
A10: 2024-03-31 | B10: مستخلصات | E10: مشروع اعمال مجمع الثلاجات البطاطس محطة الفرز و التعبئة /2023 | O10: جارى 3 | Q10: 16500 | R10: 264340
A11: 2024-01-31 | B11: مستخلصات | E11: مشروع اعمال مجمع الثلاجات البطاطس محطة الفرز و التعبئة /2023 | J11: - | O11: جارى 3 | Q11: 16200 | R11: 280540
A12: 2024-03-02 | B12: مستخلصات | E12: مشروع اعمال مجمع الثلاجات البطاطس محطة الفرز و التعبئة /2023 | O12: جارى 1 | Q12: 25824 | R12: 306364
A13: 2024-02-13 | B13: دفعات | E13: مشروع اعمال مجمع الثلاجات البطاطس محطة الفرز و التعبئة /2023 | J13: - | P13: 31200 | R13: 275164
A14: 2024-01-24 | B14: دفعات | E14: مشروع اعمال مجمع الثلاجات البطاطس محطة الفرز و التعبئة /2023 | P14: 87500 | R14: 187664
A15: 2024-03-25 | B15: دفعات | E15: مشروع اعمال مجمع الثلاجات البطاطس محطة الفرز و التعبئة /2023 | J15: - | P15: 155124 | R15: 32540
A16: 2024-11-05 | B16: دفعات | E16: مشروع اعمال مجمع الثلاجات البطاطس محطة الفرز و التعبئة /2023 | P16: 200000 | R16: -167460
J17: - | R17: -167460

Sheet شركة.ماستر.بيلدرز
A1: 377 | B1: شركة.ماستر.بيلدرز | D1: 2023 | K1: عدد اليوميات | L1: =SUBTOTAL(9,L5:L144) -> 0 | M1: قيمة الاعمال | N1: =SUBTOTAL(9,N5:N144) -> 0 | P1: =SUBTOTAL(9,P5:P56) -> 2303945 | Q1: =SUBTOTAL(9,Q5:Q56) -> 2045970 | R1: =P1+P4-Q1-Q4 -> 257975
A3: التاريخ | B3: الحركة /رقم القيد | C3: رقم الشيك | D3: البيــان | E3: اسم المشروع | F3: رقم العقد | G3: بند الاعمال | H3: بداية الاعمال | I3: نهاية الاعمال | J3: سعر البند بالعقد | K3: الوحدة | L3: الكمية | M3: السعر | N3: قيمة المستخلص | O3: رقم المستخلص | P3: مدين | Q3: دائن | R3: رصيـد
D4: 2023-01-01 | P4: ='[1]ارصده المقاولين'!K159 -> 0 | Q4: ='[1]ارصده المقاولين'!L159 -> 0
E5: مشروع اعمال مجمع الثلاجات البطاطس محطة الفرز و التعبئة /2023 | J5: - | P5: 200000 | R5: =R4+P5-Q5 -> 200000
E6: مشروع اعمال مجمع الثلاجات البطاطس محطة الفرز و التعبئة /2023 | J6: - | P6: 1000000 | R6: =R5+P6-Q6 -> 1200000
E7: مشروع اعمال مجمع الثلاجات البطاطس محطة الفرز و التعبئة /2023 | J7: - | P7: 3100 | R7: =R6+P7-Q7 -> 1203100
E8: مشروع اعمال مجمع الثلاجات البطاطس محطة الفرز و التعبئة /2023 | J8: - | P8: 750000 | R8: =R7+P8-Q8 -> 1953100
J9: - | P9: 765 | R9: =R8+P9-Q9 -> 1953865
P10: 80 | R10: 1953945
J11: - | Q11: 2045970 | R11: -92025
P12: 94000 | R12: 1975
J13: - | P13: 256000 | R13: 257975
R14: 257975
J15: - | R15: 257975
R16: 257975
J17: - | R17: 257975
